Workbook

Sheet 1. 매수매도 총잔량
A3: 2024-05-23
A4: 시간 | B4: 매도총잔량 | C4: 매도건수 | D4: 매수총잔량 | E4: 매수건수 | F4: 순매수총잔량 | G4: 선물지수 | H4: 순매수건수 | I4: 평균계약수
A5: =NOW() -> 45435.65887 | B5: =[1]!'101V6000.101' ->  | C5: =[1]!'101V6000.103' ->  | D5: =[1]!'101V6000.106' ->  | E5: =[1]!'101V6000.108' ->  | F5: =D5-B5 ->  | G5: =[1]!'101V6000.023' ->  | H5: =E5-C5 ->  | I5: =F5/H5 -> 
B6: 건수당 계약수 | C6: =B5/C5 ->  | D6: 건수당 계약수 | E6: =D5/E5 ->  | F6: 건수당 계약수 | H6: =E6-C6 -> 
A8: 시간 | B8: 매도총잔량 | C8: 매도건수 | D8: 매수총잔량 | E8: 매수건수 | F8: 순매수총잔량 | G8: 선물지수 | H8: 순매수건수 | I8: 평균계약수
A9: 08:40:00 | B9: 12263 | C9: 1302 | D9: 12933 | E9: 1554 | F9: 670 | G9: 372.85 | H9: =(D9/E9)-(B9/C9) -> -1.096192967 | I9: =(D9-B9)/(E9-C9) -> 2.658730159
A10: 08:41:00 | B10: 12276 | C10: 1326 | D10: 12989 | E10: 1600 | F10: 713 | G10: 372.85 | H10: =(D10/E10)-(B10/C10) -> -1.139793552 | I10: =(D10-B10)/(E10-C10) -> 2.602189781
A11: 08:42:00 | B11: 10791 | C11: 1281 | D11: 11538 | E11: 1583 | F11: 747 | G11: 372.85 | H11: -1.135195232 | I11: 2.473509934
A12: 08:43:00 | B12: 10768 | C12: 1318 | D12: 11647 | E12: 1628 | F12: 879 | G12: 372.85 | H12: -1.015777572 | I12: 2.835483871
A13: 08:44:00 | B13: 8969 | C13: 1167 | D13: 11369 | E13: 1588 | F13: 2400 | G13: 372.85 | H13: -0.5261985241 | I13: 5.700712589
A14: 08:45:00 | B14: 9733 | C14: 1366 | D14: 12620 | E14: 1941 | F14: 2887 | G14: 372.85 | H14: -0.6233798219 | I14: 5.020869565
A15: 08:46:00 | B15: 9244 | C15: 1476 | D15: 12130 | E15: 1839 | F15: 2886 | G15: 372.25 | H15: 0.3331034452 | I15: 7.950413223
A16: 08:47:00 | B16: 9655 | C16: 1636 | D16: 12013 | E16: 1869 | F16: 2358 | G16: 372 | H16: 0.5259120956 | I16: 10.12017167
A17: 08:48:00 | B17: 9335 | C17: 1554 | D17: 12459 | E17: 2065 | F17: 3124 | G17: 372.35 | H17: 0.02633553651 | I17: 6.113502935
A18: 08:49:00 | B18: 9450 | C18: 1559 | D18: 12580 | E18: 2119 | F18: 3130 | G18: 372.45 | H18: -0.1248153107 | I18: 5.589285714
A19: 08:50:00 | B19: 9335 | C19: 1521 | D19: 12698 | E19: 2176 | F19: 3363 | G19: 372.6 | H19: -0.3019316578 | I19: 5.134351145
A20: 08:51:00 | B20: 9484 | C20: 1553 | D20: 12832 | E20: 2218 | F20: 3348 | G20: 372.6 | H20: -0.3214976453 | I20: =(D20-B20)/(E20-C20) -> 5.034586466
A21: 08:52:00 | B21: 9723 | C21: 1659 | D21: 12562 | E21: 2103 | F21: 2839 | G21: 372.3 | H21: 0.1126118806 | I21: 6.394144144
A22: 08:53:00 | B22: 9784 | C22: 1693 | D22: 12546 | E22: 2119 | F22: 2762 | G22: 372.3 | H22: 0.1416269474 | I22: =(D22-B22)/(E22-C22) -> 6.483568075
A23: 08:54:00 | B23: 9832 | C23: 1704 | D23: 12543 | E23: 2118 | F23: 2711 | G23: 372.3 | H23: 0.1521432656 | I23: 6.548309179
A24: 08:55:00 | B24: 10081 | C24: 1825 | D24: 12280 | E24: 1979 | F24: 2199 | G24: 372.1 | H24: 0.6813185018 | I24: =(D24-B24)/(E24-C24) -> 14.27922078
A25: 08:56:00 | B25: 10158 | C25: 1846 | D25: 12255 | E25: 1994 | F25: 2097 | G25: 372.05 | H25: 0.6432292544 | I25: 14.16891892
A26: 08:57:00 | B26: 10427 | C26: 1886 | D26: 12094 | E26: 1965 | F26: 1667 | G26: 371.95 | H26: 0.6260753537 | I26: 21.10126582
A27: 08:58:00 | B27: 10488 | C27: 1920 | D27: 12137 | E27: 1960 | F27: 1649 | G27: 371.95 | H27: 0.7298469388 | I27: 41.225
A28: 08:59:00 | B28: 10729 | C28: 2001 | D28: 11890 | E28: 1835 | F28: 1161 | G28: 371.65 | H28: 1.117744942 | I28: -6.993975904
A29: 09:00:00 | B29: 10524 | C29: 1962 | D29: 12259 | E29: 1991 | F29: 1735 | G29: 371.95 | H29: 0.7932930604 | I29: 59.82758621
A30: 09:01:00 | B30: 10790 | C30: 1994 | D30: 12312 | E30: 2093 | F30: 1522 | G30: 371.8 | H30: 0.4712316596 | I30: 15.37373737
A31: 09:02:00 | B31: 10826 | C31: 2048 | D31: 12360 | E31: 2106 | F31: 1534 | G31: 371.75 | H31: 0.5828130564 | I31: 26.44827586
A32: 09:03:00 | B32: 11332 | C32: 2207 | D32: 12185 | E32: 2014 | F32: 853 | G32: 371.45 | H32: 0.9155771404 | I32: -4.419689119
A33: 09:04:00 | B33: 11926 | C33: 2340 | D33: 11712 | E33: 1888 | F33: -214 | G33: 371.05 | H33: 1.106808634 | I33: 0.4734513274
A34: 09:05:00 | B34: 12282 | C34: 2430 | D34: 11458 | E34: 1825 | F34: -824 | G34: 370.85 | H34: 1.224035177 | I34: 1.361983471
A35: 09:06:00 | B35: 12808 | C35: 2533 | D35: 11031 | E35: 1695 | F35: -1777 | G35: 370.45 | H35: 1.451509805 | I35: 2.12052506
A36: 09:07:00 | B36: 12581 | C36: 2443 | D36: 11451 | E36: 1902 | F36: -1130 | G36: 370.6 | H36: 0.8706889316 | I36: 2.088724584
A37: 09:08:00 | B37: 13169 | C37: 2608 | D37: 10544 | E37: 1652 | F37: -2625 | G37: 370.15 | H37: 1.333103396 | I37: 2.7458159
A38: 09:09:00 | B38: 13426 | C38: 2640 | D38: 10260 | E38: 1614 | F38: -3166 | G38: 369.95 | H38: =(D38/E38)-(B38/C38) -> 1.271271263 | I38: 3.085769981
A39: 09:10:00 | B39: 13399 | C39: 2623 | D39: 10547 | E39: 1759 | F39: -2852 | G39: 369.95 | H39: =(D39/E39)-(B39/C39) -> 0.8877474963 | I39: 3.300925926
A40: 09:11:00 | B40: 13648 | C40: 2685 | D40: 10495 | E40: 1739 | F40: -3153 | G40: 369.85 | H40: 0.9520236271 | I40: 3.332980973
A41: 09:12:00 | B41: 13391 | C41: 2593 | D41: 10585 | E41: 1806 | F41: -2806 | G41: 369.9 | H41: 0.6967303572 | I41: 3.565438374
A42: 09:13:00 | B42: 13596 | C42: 2640 | D42: 10671 | E42: 1803 | F42: -2925 | G42: 369.85 | H42: 0.768469218 | I42: 3.494623656
A43: 09:14:00 | B43: 12970 | C43: 2457 | D43: 11083 | E43: 1998 | F43: -1887 | G43: 370.25 | H43: 0.2682517683 | I43: 4.111111111
A44: 09:15:00 | B44: 13333 | C44: 2531 | D44: 10980 | E44: 1970 | F44: -2353 | G44: 370.1 | H44: 0.3057257519 | I44: 4.1942959
A45: 09:16:00 | B45: 13739 | C45: 2696 | D45: 10777 | E45: 1970 | F45: -2962 | G45: 369.95 | H45: 0.3744901264 | I45: 4.079889807
A46: 09:17:00 | B46: 13887 | C46: 2849 | D46: 10500 | E46: 1870 | F46: -3387 | G46: 369.75 | H46: 0.7406313877 | I46: 3.459652707
A47: 09:18:00 | B47: 13662 | C47: 2686 | D47: 10855 | E47: 1983 | F47: -2807 | G47: 369.95 | H47: 0.3876554586 | I47: 3.992887624
A48: 09:19:00 | B48: 13666 | C48: 2672 | D48: 10956 | E48: 2010 | F48: -2710 | G48: 370 | H48: 0.3362253106 | I48: 4.093655589
A49: 09:20:00 | B49: 13417 | C49: 2559 | D49: 11255 | E49: 2119 | F49: -2162 | G49: 370.1 | H49: 0.06840397667 | I49: 4.913636364
A50: 09:21:00 | B50: 12952 | C50: 2477 | D50: 11619 | E50: 2257 | F50: -1333 | G50: 370.35 | H50: -0.08092188497 | I50: 6.059090909
A51: 09:22:00 | B51: 13138 | C51: 2568 | D51: 11765 | E51: 2268 | F51: -1373 | G51: 370.3 | H51: 0.07134615702 | I51: =(D51-B51)/(E51-C51) -> 4.576666667
A52: 09:23:00 | B52: 12494 | C52: 2355 | D52: 12338 | E52: 2460 | F52: -156 | G52: 370.65 | H52: -0.2898607012 | I52: -1.485714286
A53: 09:24:00 | B53: 12552 | C53: 2400 | D53: 12444 | E53: 2472 | F53: -108 | G53: 370.75 | H53: -0.1960194175 | I53: -1.5
A54: 09:25:00 | B54: 12304 | C54: 2341 | D54: 12782 | E54: 2561 | F54: 478 | G54: 371 | H54: -0.2648544252 | I54: 2.172727273
A55: 09:26:00 | B55: 11705 | C55: 2186 | D55: 13137 | E55: 2578 | F55: 1432 | G55: 371.2 | H55: -0.2587181138 | I55: 3.653061224
A56: 09:27:00 | B56: 11640 | C56: 2181 | D56: 13353 | E56: 2613 | F56: 1713 | G56: 371.35 | H56: -0.2267832354 | I56: 3.965277778
A57: 09:28:00 | B57: 11750 | C57: 2252 | D57: 13169 | E57: 2536 | F57: 1419 | G57: 371.3 | H57: -0.0247610256 | I57: 4.996478873
A58: 09:29:00 | B58: 11587 | C58: 2193 | D58: 13410 | E58: 2585 | F58: 1823 | G58: 371.4 | H58: -0.09600884121 | I58: 4.650510204
A59: 09:30:00 | B59: 11339 | C59: 2138 | D59: 13207 | E59: 2452 | F59: 1868 | G59: 371.35 | H59: 0.08266061038 | I59: 5.949044586
A60: 09:31:00 | B60: 11828 | C60: 2286 | D60: 12985 | E60: 2372 | F60: 1157 | G60: 371.2 | H60: 0.3001800681 | I60: 13.45348837
A61: 09:32:00 | B61: 11536 | C61: 2241 | D61: 13247 | E61: 2470 | F61: 1711 | G61: 371.25 | H61: 0.215455976 | I61: 7.471615721
A62: 09:33:00 | B62: 11263 | C62: 2128 | D62: 13555 | E62: 2590 | F62: 2292 | G62: 371.45 | H62: -0.0591724243 | I62: 4.961038961
A63: 09:34:00 | B63: 11230 | C63: 2147 | D63: 13553 | E63: 2573 | F63: 2323 | G63: 371.5 | H63: 0.03683788748 | I63: 5.453051643
A64: 09:35:00 | B64: 11215 | C64: 2156 | D64: 13648 | E64: 2591 | F64: 2433 | G64: 371.55 | H64: 0.06570177631 | I64: 5.593103448
A65: 09:36:00 | B65: 11253 | C65: 2167 | D65: 13617 | E65: 2608 | F65: 2364 | G65: 371.5 | H65: 0.02834893027 | I65: 5.360544218
A66: 09:37:00 | B66: 11347 | C66: 2218 | D66: 13641 | E66: 2605 | F66: 2294 | G66: 371.5 | H66: 0.1205981768 | I66: 5.927648579
A67: 09:38:00 | B67: 10954 | C67: 2060 | D67: 14006 | E67: 2736 | F67: 3052 | G67: 371.7 | H67: -0.1983236814 | I67: 4.514792899
A68: 09:39:00 | B68: 11513 | C68: 2255 | D68: 13606 | E68: 2566 | F68: 2093 | G68: 371.5 | H68: 0.1968729748 | I68: 6.729903537
A69: 09:40:00 | B69: 12067 | C69: 2453 | D69: 13057 | E69: 2381 | F69: 990 | G69: 371.2 | H69: 0.5645478122 | I69: -13.75
A70: 09:41:00 | B70: 12535 | C70: 2599 | D70: 12421 | E70: 2178 | F70: -114 | G70: 370.9 | H70: 0.8799296261 | I70: 0.270783848
A71: 09:42:00 | B71: 12842 | C71: 2641 | D71: 12340 | E71: 2219 | F71: -502 | G71: 370.8 | H71: 0.6985114785 | I71: 1.18957346
A72: 09:43:00 | B72: 13200 | C72: 2720 | D72: 11539 | E72: 1971 | F72: -1661 | G72: 370.45 | H72: 1.001447459 | I72: 2.217623498
A73: 09:44:00 | B73: 13389 | C73: 2720 | D73: 11409 | E73: 1986 | F73: -1980 | G73: 370.35 | H73: =(D73/E73)-(B73/C73) -> 0.8222865203 | I73: =(D73-B73)/(E73-C73) -> 2.697547684
A74: 09:45:00 | B74: 13293 | C74: 2699 | D74: 11574 | E74: 2069 | F74: -1719 | G74: 370.35 | H74: 0.6688493008 | I74: 2.728571429
A75: 09:46:00 | B75: 12686 | C75: 2519 | D75: 12097 | E75: 2250 | F75: -589 | G75: 370.65 | H75: 0.3403189978 | I75: 2.189591078
A76: 09:47:00 | B76: 12311 | C76: 2401 | D76: 12537 | E76: 2391 | F76: 226 | G76: 370.9 | H76: 0.1159659009 | I76: =(D76-B76)/(E76-C76) -> -22.6
A77: 09:48:00 | B77: 11888 | C77: 2310 | D77: 13043 | E77: 2522 | F77: 1155 | G77: 371.1 | H77: 0.02536878929 | I77: 5.448113208
A78: 09:49:00 | B78: 12380 | C78: 2491 | D78: 12426 | E78: 2247 | F78: 46 | G78: 370.85 | H78: 0.5601484436 | I78: -0.1885245902
A79: 09:50:00 | B79: 12610 | C79: 2531 | D79: 12220 | E79: 2198 | F79: -390 | G79: 370.75 | H79: 0.5773791698 | I79: 1.171171171
A80: 09:51:00 | B80: 12536 | C80: 2502 | D80: 12369 | E80: 2271 | F80: -167 | G80: 370.8 | H80: 0.4361076528 | I80: 0.7229437229
A81: 09:52:00 | B81: 12601 | C81: 2512 | D81: 12487 | E81: 2297 | F81: -114 | G81: 370.8 | H81: 0.419899502 | I81: 0.5302325581
A82: 09:53:00 | B82: 12801 | C82: 2567 | D82: 12454 | E82: 2298 | F82: -347 | G82: 370.7 | H82: 0.4327402463 | I82: 1.289962825
A83: 09:54:00 | B83: 13098 | C83: 2690 | D83: 12289 | E83: 2233 | F83: -809 | G83: 370.55 | H83: 0.6342137288 | I83: 1.7702407
A84: 09:55:00 | B84: 13346 | C84: 2756 | D84: 11927 | E84: 2117 | F84: -1419 | G84: 370.45 | H84: 0.7913905196 | I84: 2.220657277
A85: 09:56:00 | B85: 13253 | C85: 2716 | D85: 12012 | E85: 2190 | F85: -1241 | G85: 370.5 | H85: 0.6053291504 | I85: 2.359315589
A86: 09:57:00 | B86: 13198 | C86: 2693 | D86: 11993 | E86: 2177 | F86: -1205 | G86: 370.5 | H86: 0.6081032146 | I86: 2.335271318
A87: 09:58:00 | B87: 13339 | C87: 2741 | D87: 11780 | E87: 2076 | F87: -1559 | G87: 370.45 | H87: 0.8079017053 | I87: =(D87-B87)/(E87-C87) -> 2.344360902
A88: 09:59:00 | B88: 13660 | C88: 2795 | D88: 11715 | E88: 2069 | F88: -1945 | G88: 370.3 | H88: 0.774856883 | I88: 2.679063361
A89: 10:00:00 | B89: 13442 | C89: 2695 | D89: 11984 | E89: 2157 | F89: -1458 | G89: 370.45 | H89: 0.5681095248 | I89: 2.710037175
A90: 10:01:00 | B90: 13341 | C90: 2677 | D90: 12034 | E90: 2171 | F90: -1307 | G90: 370.5 | H90: 0.55950402 | I90: =(D90-B90)/(E90-C90) -> 2.583003953
A91: 10:02:00 | B91: 13564 | C91: 2747 | D91: 11869 | E91: 2107 | F91: -1695 | G91: 370.35 | H91: 0.6953773966 | I91: 2.6484375
A92: 10:03:00 | B92: 13585 | C92: 2765 | D92: 11944 | E92: 2125 | F92: -1641 | G92: 370.35 | H92: 0.707505159 | I92: 2.5640625
A93: 10:04:00 | B93: 13796 | C93: 2800 | D93: 11713 | E93: 2096 | F93: -2083 | G93: 370.25 | H93: 0.6611205016 | I93: 2.958806818
A94: 10:05:00 | B94: 13500 | C94: 2731 | D94: 12024 | E94: 2197 | F94: -1476 | G94: 370.45 | H94: 0.529673382 | I94: 2.764044944
A95: 10:06:00 | B95: 13014 | C95: 2564 | D95: 12475 | E95: 2330 | F95: -539 | G95: 370.7 | H95: 0.2784142267 | I95: 2.303418803
A96: 10:07:00 | B96: 12891 | C96: 2512 | D96: 12717 | E96: 2420 | F96: -174 | G96: 370.75 | H96: 0.1231911618 | I96: 1.891304348
A97: 10:08:00 | B97: 12818 | C97: 2535 | D97: 12817 | E97: 2432 | F97: -1 | G97: 370.8 | H97: 0.2137377699 | I97: =(D97-B97)/(E97-C97) -> 0.009708737864
A98: 10:09:00 | B98: 12551 | C98: 2457 | D98: 13108 | E98: 2529 | F98: 557 | G98: 370.9 | H98: 0.07481420649 | I98: 7.736111111
A99: 10:10:00 | B99: 12096 | C99: 2374 | D99: 13443 | E99: 2615 | F99: 1347 | G99: 371.1 | H99: 0.04552859934 | I99: 5.589211618
A100: 10:11:00 | B100: 12442 | C100: 2512 | D100: 13256 | E100: 2503 | F100: 814 | G100: 370.95 | H100: 0.3430192686 | I100: -90.44444444
A101: 10:12:00 | B101: 12976 | C101: 2645 | D101: 12808 | E101: 2354 | F101: -168 | G101: 370.7 | H101: 0.5350914584 | I101: 0.5773195876
A102: 10:13:00 | B102: 13109 | C102: 2696 | D102: 12628 | E102: 2326 | F102: -481 | G102: 370.65 | H102: 0.5666740447 | I102: 1.3
A103: 10:14:00 | B103: 12918 | C103: 2617 | D103: 12837 | E103: 2393 | F103: -81 | G103: 370.75 | H103: 0.4282096824 | I103: 0.3616071429
A104: 10:15:00 | B104: 13521 | C104: 2839 | D104: 12238 | E104: 2204 | F104: -1283 | G104: 370.4 | H104: 0.7900391168 | I104: 2.020472441
A105: 10:16:00 | B105: 13675 | C105: 2822 | D105: 12264 | E105: 2217 | F105: -1411 | G105: 370.45 | H105: 0.6859457251 | I105: 2.332231405
A106: 10:17:00 | B106: 13311 | C106: 2739 | D106: 12607 | E106: 2312 | F106: -704 | G106: 370.55 | H106: 0.5930518235 | I106: 1.648711944
A107: 10:18:00 | B107: 13526 | C107: 2799 | D107: 12416 | E107: 2251 | F107: -1110 | G107: 370.45 | H107: 0.6833306113 | I107: 2.025547445
A108: 10:19:00 | B108: 13101 | C108: 2684 | D108: 12894 | E108: 2401 | F108: -207 | G108: 370.65 | H108: 0.4891148497 | I108: 0.7314487633
A109: 10:20:00 | B109: 13392 | C109: 2756 | D109: 12646 | E109: 2313 | F109: -746 | G109: 370.55 | H109: 0.6081421535 | I109: 1.683972912
A110: 10:21:00 | B110: 13851 | C110: 2890 | D110: 12363 | E110: 2228 | F110: -1488 | G110: 370.4 | H110: 0.7561892367 | I110: 2.247734139
A111: 10:22:00 | B111: 13918 | C111: 2897 | D111: 12299 | E111: 2204 | F111: -1619 | G111: 370.4 | H111: 0.77602824 | I111: 2.336219336
A112: 10:23:00 | B112: 14132 | C112: 2976 | D112: 12174 | E112: 2168 | F112: -1958 | G112: 370.3 | H112: 0.8666577392 | I112: 2.423267327
A113: 10:24:00 | B113: 14203 | C113: 2971 | D113: 12212 | E113: 2185 | F113: -1991 | G113: 370.3 | H113: 0.8084707474 | I113: 2.53307888
A114: 10:25:00 | B114: 14235 | C114: 2985 | D114: 12184 | E114: 2183 | F114: -2051 | G114: 370.3 | H114: 0.8124659026 | I114: 2.557356608
A115: 10:26:00 | B115: 13789 | C115: 2853 | D115: 12516 | E115: 2299 | F115: -1273 | G115: 370.45 | H115: 0.6109480539 | I115: 2.297833935
A116: 10:27:00 | B116: 13644 | C116: 2822 | D116: 12662 | E116: 2331 | F116: -982 | G116: 370.5 | H116: 0.5971345447 | I116: 2
A117: 10:28:00 | B117: 13555 | C117: 2809 | D117: 12675 | E117: 2355 | F117: -880 | G117: 370.55 | H117: 0.5566049073 | I117: 1.938325991
A118: 10:29:00 | B118: 13785 | C118: 2878 | D118: 12506 | E118: 2307 | F118: -1279 | G118: 370.4 | H118: 0.6311083619 | I118: 2.239929947
A119: 10:30:00 | B119: 13926 | C119: 2891 | D119: 12423 | E119: 2270 | F119: -1503 | G119: 370.35 | H119: 0.6556688919 | I119: 2.420289855
A120: 10:31:00 | B120: 13953 | C120: 2885 | D120: 12425 | E120: 2276 | F120: -1528 | G120: 370.35 | H120: 0.6227436928 | I120: 2.509031199
A121: 10:32:00 | B121: 13661 | C121: 2831 | D121: 12769 | E121: 2390 | F121: -892 | G121: 370.55 | H121: 0.5171744686 | I121: 2.022675737
A122: 10:33:00 | B122: 13679 | C122: 2845 | D122: 12696 | E122: 2354 | F122: -983 | G122: 370.45 | H122: 0.5852886236 | I122: 2.00203666
A123: 10:34:00 | B123: 13665 | C123: 2825 | D123: 12737 | E123: 2374 | F123: -928 | G123: 370.5 | H123: 0.5280382611 | I123: 2.057649667
A124: 10:35:00 | B124: 13784 | C124: 2866 | D124: 12687 | E124: 2356 | F124: -1097 | G124: 370.45 | H124: 0.5754839539 | I124: 2.150980392
A125: 10:36:00 | B125: 13520 | C125: 2784 | D125: 12957 | E125: 2439 | F125: -563 | G125: 370.6 | H125: 0.4561012852 | I125: 1.631884058
A126: 10:37:00 | B126: 12860 | C126: 2591 | D126: 13514 | E126: 2617 | F126: 654 | G126: 370.85 | H126: 0.2005935422 | I126: =(D126-B126)/(E126-C126) -> 25.15384615
A127: 10:38:00 | B127: 12440 | C127: 2471 | D127: 13939 | E127: 2706 | F127: 1499 | G127: 371 | H127: 0.1167465736 | I127: 6.378723404
A128: 10:39:00 | B128: 12475 | C128: 2504 | D128: 13872 | E128: 2695 | F128: 1397 | G128: 371 | H128: 0.165281079 | I128: 7.314136126
A129: 10:40:00 | B129: 12498 | C129: 2537 | D129: 13866 | E129: 2701 | F129: 1368 | G129: 371 | H129: 0.2073633074 | I129: 8.341463415
A130: 10:41:00 | B130: 12720 | C130: 2592 | D130: 13753 | E130: 2686 | F130: 1033 | G130: 370.9 | H130: 0.2128457571 | I130: =(D130-B130)/(E130-C130) -> 10.9893617
A131: 10:42:00 | B131: 12146 | C131: 2416 | D131: 14071 | E131: 2775 | F131: 1925 | G131: 371.1 | H131: =(D131/E131)-(B131/C131) -> 0.04331274984 | I131: =(D131-B131)/(E131-C131) -> 5.362116992
A132: 10:43:00 | B132: 12167 | C132: 2423 | D132: 14267 | E132: 2831 | F132: 2100 | G132: 371.1 | H132: 0.01810099347 | I132: 5.147058824
A133: 10:44:00 | B133: 12502 | C133: 2547 | D133: 13935 | E133: 2703 | F133: 1433 | G133: 370.95 | H133: 0.2468630806 | I133: 9.185897436
A134: 10:45:00 | B134: 12346 | C134: 2494 | D134: 14044 | E134: 2730 | F134: 1698 | G134: 371.05 | H134: =(D134/E134)-(B134/C134) -> 0.1940416707 | I134: =(D134-B134)/(E134-C134) -> 7.194915254
A135: 10:46:00 | B135: 12714 | C135: 2634 | D135: 13720 | E135: 2639 | F135: 1006 | G135: 370.85 | H135: =(D135/E135)-(B135/C135) -> 0.372059721 | I135: =(D135-B135)/(E135-C135) -> 201.2
A136: 10:47:00 | B136: 12910 | C136: 2679 | D136: 13568 | E136: 2601 | F136: 658 | G136: 370.8 | H136: 0.3974929102 | I136: -8.435897436
A137: 10:48:00 | B137: 13064 | C137: 2727 | D137: 13472 | E137: 2571 | F137: 408 | G137: 370.75 | H137: 0.4493720473 | I137: -2.615384615
A138: 10:49:00 | B138: 12013 | C138: 2401 | D138: 14169 | E138: 2752 | F138: 2156 | G138: 371.15 | H138: 0.145287241 | I138: 6.142450142
A139: 10:50:00 | B139: 12426 | C139: 2551 | D139: 13916 | E139: 2692 | F139: 1490 | G139: 371 | H139: 0.2983598193 | I139: 10.56737589
A140: 10:51:00 | B140: 12453 | C140: 2557 | D140: 13995 | E140: 2718 | F140: 1542 | G140: 371 | H140: 0.2788462784 | I140: 9.577639752
A141: 10:52:00 | B141: 12418 | C141: 2551 | D141: 14010 | E141: 2731 | F141: 1592 | G141: 371 | H141: 0.2620940719 | I141: 8.844444444
A142: 10:53:00 | B142: 12507 | C142: 2591 | D142: 13902 | E142: 2655 | F142: 1395 | G142: 370.95 | H142: 0.4090644059 | I142: 21.796875
A143: 10:54:00 | B143: 12284 | C143: 2521 | D143: 14080 | E143: 2720 | F143: 1796 | G143: 371 | H143: 0.3038010127 | I143: 9.025125628
A144: 10:55:00 | B144: 12285 | C144: 2526 | D144: 14153 | E144: 2748 | F144: 1868 | G144: 371.05 | H144: 0.2868706933 | I144: 8.414414414
A145: 10:56:00 | B145: 11721 | C145: 2319 | D145: 14632 | E145: 2881 | F145: 2911 | G145: 371.3 | H145: 0.02445832153 | I145: 5.179715302
A146: 10:57:00 | B146: 12060 | C146: 2432 | D146: 14428 | E146: 2821 | F146: 2368 | G146: 371.2 | H146: 0.1556168259 | I146: 6.087403599
A147: 10:58:00 | B147: 11863 | C147: 2383 | D147: 14702 | E147: 2927 | F147: 2839 | G147: 371.25 | H147: 0.04471156514 | I147: 5.21875
A148: 10:59:00 | B148: 11960 | C148: 2426 | D148: 14609 | E148: 2883 | F148: 2649 | G148: 371.2 | H148: 0.1373652125 | I148: 5.796498906
A149: 11:00:00 | B149: 12316 | C149: 2526 | D149: 14300 | E149: 2792 | F149: 1984 | G149: 371.1 | H149: 0.2460837094 | I149: 7.458646617
A150: 11:01:00 | B150: 12462 | C150: 2575 | D150: 14078 | E150: 2717 | F150: 1616 | G150: 371 | H150: 0.3418384783 | I150: 11.38028169
A151: 11:02:00 | B151: 12405 | C151: 2558 | D151: 14118 | E151: 2722 | F151: 1713 | G151: 371.05 | H151: 0.3371356893 | I151: 10.44512195
A152: 11:03:00 | B152: 12176 | C152: 2498 | D152: 14375 | E152: 2814 | F152: 2199 | G152: 371.2 | H152: 0.2340871987 | I152: 6.958860759
A153: 11:04:00 | B153: 11925 | C153: 2406 | D153: 14589 | E153: 2879 | F153: 2664 | G153: 371.3 | H153: 0.1110254063 | I153: 5.632135307
A154: 11:05:00 | B154: 11795 | C154: 2362 | D154: 14695 | E154: 2926 | F154: 2900 | G154: 371.35 | H154: 0.02856517786 | I154: 5.141843972
A155: 11:06:00 | B155: 11587 | C155: 2217 | D155: 14949 | E155: 2995 | F155: 3362 | G155: 371.5 | H155: -0.2351132507 | I155: 4.321336761
A156: 11:07:00 | B156: 11748 | C156: 2251 | D156: 14850 | E156: 2959 | F156: 3102 | G156: 371.45 | H156: -0.2004264111 | I156: 4.381355932
A157: 11:08:00 | B157: 11573 | C157: 2222 | D157: 14974 | E157: 2947 | F157: 3401 | G157: 371.55 | H157: -0.1272714139 | I157: 4.691034483
A158: 11:09:00 | B158: 11237 | C158: 2066 | D158: 15213 | E158: 3001 | F158: 3976 | G158: 371.7 | H158: -0.3697023548 | I158: 4.252406417
A159: 11:10:00 | B159: 11196 | C159: 2112 | D159: 15274 | E159: 2985 | F159: 4078 | G159: 371.7 | H159: -0.1842184407 | I159: 4.671248568
A160: 11:11:00 | B160: 11117 | C160: 2076 | D160: 15187 | E160: 2942 | F160: 4070 | G160: 371.75 | H160: -0.1928750316 | I160: 4.699769053
A161: 11:12:00 | B161: 11183 | C161: 2112 | D161: 15191 | E161: 2941 | F161: 4008 | G161: 371.75 | H161: -0.1297311456 | I161: 4.834740651
A162: 11:13:00 | B162: 11036 | C162: 2054 | D162: 15284 | E162: 2966 | F162: 4248 | G162: 371.8 | H162: -0.2198627614 | I162: 4.657894737
A163: 11:14:00 | B163: 10696 | C163: 1953 | D163: 15604 | E163: 3050 | F163: 4908 | G163: 371.95 | H163: -0.3606369352 | I163: 4.474020055
A164: 11:15:00 | B164: 10753 | C164: 1981 | D164: 15515 | E164: 3016 | F164: 4762 | G164: 371.95 | H164: -0.2838358638 | I164: 4.600966184
A165: 11:16:00 | B165: 11008 | C165: 2072 | D165: 15306 | E165: 2948 | F165: 4298 | G165: 371.8 | H165: -0.1207467401 | I165: 4.906392694
A166: 11:17:00 | B166: 10948 | C166: 2069 | D166: 15473 | E166: 3008 | F166: 4525 | G166: 371.85 | H166: -0.1474956745 | I166: 4.818956337
A167: 11:18:00 | B167: 11265 | C167: 2153 | D167: 15229 | E167: 2903 | F167: 3964 | G167: 371.7 | H167: 0.013718371 | I167: 5.285333333
A168: 11:19:00 | B168: 11200 | C168: 2125 | D168: 15365 | E168: 2941 | F168: 4165 | G168: 371.8 | H168: -0.04617477049 | I168: 5.104166667
A169: 11:20:00 | B169: 11114 | C169: 2121 | D169: 15469 | E169: 2973 | F169: 4355 | G169: 371.8 | H169: -0.03681935153 | I169: 5.111502347
A170: 11:21:00 | B170: 10774 | C170: 1949 | D170: 15852 | E170: 3073 | F170: 5078 | G170: 372 | H170: -0.3694859997 | I170: 4.517793594
A171: 11:22:00 | B171: 11108 | C171: 2023 | D171: 15819 | E171: 3110 | F171: 4711 | G171: 372 | H171: -0.4043599887 | I171: 4.333946642
A172: 11:23:00 | B172: 10869 | C172: 1972 | D172: 15865 | E172: 3121 | F172: 4996 | G172: 372 | H172: -0.4283566535 | I172: 4.348128808
A173: 11:24:00 | B173: 11240 | C173: 2030 | D173: 16049 | E173: 3170 | F173: 4809 | G173: 372.05 | H173: -0.4741697876 | I173: 4.218421053
A174: 11:25:00 | B174: 11235 | C174: 2030 | D174: 16173 | E174: 3235 | F174: 4938 | G174: 372.1 | H174: -0.5351009966 | I174: 4.097925311
A175: 11:26:00 | B175: 11081 | C175: 1985 | D175: 16268 | E175: 3245 | F175: 5187 | G175: 372.15 | H175: -0.5691166026 | I175: 4.116666667
A176: 11:27:00 | B176: 10538 | C176: 1863 | D176: 16553 | E176: 3323 | F176: 6015 | G176: 372.3 | H176: -0.6751259016 | I176: 4.119863014
A177: 11:28:00 | B177: 10452 | C177: 1826 | D177: 16755 | E177: 3336 | F177: 6303 | G177: 372.35 | H177: -0.7015048421 | I177: 4.174172185
A178: 11:29:00 | B178: 10247 | C178: 1749 | D178: 16868 | E178: 3364 | F178: 6621 | G178: 372.5 | H178: -0.844507716 | I178: 4.099690402
A179: 11:30:00 | B179: 10624 | C179: 1819 | D179: 16648 | E179: 3308 | F179: 6024 | G179: 372.4 | H179: -0.807923617 | I179: 4.045668234
A180: 11:31:00 | B180: 10339 | C180: 1760 | D180: 16871 | E180: 3384 | F180: 6532 | G180: 372.5 | H180: -0.8889117236 | I180: 4.022167488
A181: 11:32:00 | B181: 10602 | C181: 1841 | D181: 16691 | E181: 3319 | F181: 6089 | G181: 372.4 | H181: -0.7299023498 | I181: 4.119756428
A182: 11:33:00 | B182: 10421 | C182: 1787 | D182: 17046 | E182: 3425 | F182: 6625 | G182: 372.5 | H182: -0.8546269693 | I182: 4.044566545
A183: 11:34:00 | B183: 10365 | C183: 1779 | D183: 17092 | E183: 3440 | F183: 6727 | G183: 372.55 | H183: -0.8577022628 | I183: 4.049969898
A184: 11:35:00 | B184: 10880 | C184: 1923 | D184: 16665 | E184: 3333 | F184: 5785 | G184: 372.35 | H184: -0.6578263131 | I184: 4.102836879
A185: 11:36:00 | B185: 10766 | C185: 1918 | D185: 16822 | E185: 3366 | F185: 6056 | G185: 372.4 | H185: -0.6155153944 | I185: 4.182320442
A186: 11:37:00 | B186: 11043 | C186: 2013 | D186: 16518 | E186: 3279 | F186: 5475 | G186: 372.25 | H186: -0.4483305904 | I186: 4.32464455
A187: 11:38:00 | B187: 10894 | C187: 1964 | D187: 16594 | E187: 3294 | F187: 5700 | G187: 372.35 | H187: -0.5091989756 | I187: 4.285714286
A188: 11:39:00 | B188: 10602 | C188: 1876 | D188: 16916 | E188: 3400 | F188: 6314 | G188: 372.45 | H188: -0.6760918099 | I188: 4.143044619
A189: 11:40:00 | B189: 10501 | C189: 1829 | D189: 17104 | E189: 3429 | F189: 6603 | G189: 372.5 | H189: -0.7533455757 | I189: 4.126875
A190: 11:41:00 | B190: 10160 | C190: 1732 | D190: 17380 | E190: 3531 | F190: 7220 | G190: 372.65 | H190: -0.9439324283 | I190: 4.013340745
A191: 11:42:00 | B191: 10038 | C191: 1708 | D191: 17599 | E191: 3574 | F191: 7561 | G191: 372.75 | H191: -0.952874586 | I191: 4.051982851
A192: 11:43:00 | B192: 9839 | C192: 1647 | D192: 17632 | E192: 3557 | F192: 7793 | G192: 372.85 | H192: -1.0169057 | I192: 4.080104712
A193: 11:44:00 | B193: 9727 | C193: 1640 | D193: 17829 | E193: 3602 | F193: 8102 | G193: 372.9 | H193: -0.9813474222 | I193: 4.129459735
A194: 11:45:00 | B194: 9723 | C194: 1624 | D194: 17852 | E194: 3581 | F194: 8129 | G194: 372.95 | H194: -1.001869301 | I194: 4.153806847
A195: 11:46:00 | B195: 10042 | C195: 1646 | D195: 17794 | E195: 3597 | F195: 7752 | G195: 372.9 | H195: -1.153950352 | I195: 3.973347002
A196: 11:47:00 | B196: 9487 | C196: 1509 | D196: 17827 | E196: 3622 | F196: 8340 | G196: 373.1 | H196: -1.365078625 | I196: 3.946994794
A197: 11:48:00 | B197: 9512 | C197: 1571 | D197: 17808 | E197: 3599 | F197: 8296 | G197: 373.1 | H197: -1.10670108 | I197: 4.090729783
A198: 11:49:00 | B198: 9576 | C198: 1611 | D198: 17783 | E198: 3584 | F198: 8207 | G198: 373.15 | H198: -0.9823595246 | I198: 4.159655347
A199: 11:50:00 | B199: 9512 | C199: 1597 | D199: 17743 | E199: 3533 | F199: 8231 | G199: 373.15 | H199: =(D199/E199)-(B199/C199) -> -0.9340902602 | I199: =(D199-B199)/(E199-C199) -> 4.251549587
A200: 11:51:00 | B200: 9533 | C200: 1633 | D200: 17815 | E200: 3583 | F200: 8282 | G200: 373.15 | H200: -0.8656315571 | I200: 4.247179487
A201: 11:52:00 | B201: 9919 | C201: 1772 | D201: 17236 | E201: 3430 | F201: 7317 | G201: 372.95 | H201: -0.5725569105 | I201: 4.413148372
A202: 11:53:00 | B202: 9911 | C202: 1790 | D202: 17168 | E202: 3404 | F202: 7257 | G202: 372.95 | H202: -0.4933932475 | I202: 4.496282528
A203: 11:54:00 | B203: 10213 | C203: 1897 | D203: 16939 | E203: 3350 | F203: 6726 | G203: 372.85 | H203: -0.3273459272 | I203: 4.629043359
... 232 more rows

Sheet 2. 순매수에 따른 익일가격 (hidden)
I1: 15:35:00 | T1: 15:45:00 | Z1: 당일 | AB1: 발생횟수 | AC1: 성공횟수 | AD1: 확률
B2: 날짜 | C2: 시간 | D2: 매도총잔량 | E2: 매도건수 | F2: 매수총잔량 | G2: 매수건수 | H2: 순매수총잔량 | I2: 선물지수 | J2: 순매수건수 | K2: 평균계약수 | M2: 날짜 | N2: 시간 | O2: 매도총잔량 | P2: 매도건수 | Q2: 매수총잔량 | R2: 매수건수 | S2: 순매수총잔량 | T2: 선물지수 | U2: 순매수건수 | V2: 평균계약수 | W2: 종가 | Y2: 순매수총잔량 | Z2: 시작가 | AA2: 일치여부 | AB2: =COUNTA(AA4:AA1000) -> 152 | AC2: =COUNTIF(AA4:AA1000,"성공") -> 82 | AD2: =AC2/AB2 -> 0.5394736842
B3: 2023-10-12 | C3: 15:35:00 | D3: 9508 | E3: 1216 | F3: 15618 | G3: 2033 | H3: 6110 | I3: 330.4 | J3: -0.1368359567 | K3: 7.478580171 | M3: 2023-10-12 | N3: 15:46:00 | O3: 10474 | P3: 1101 | Q3: 13874 | R3: 1542 | S3: 3400 | T3: 330.45 | U3: -0.5157638793 | V3: 7.709750567 | W3: =T3 -> 330.45 | Y3: =IF(H3>S3,"하락","상승") -> 하락 | AB3: 순매수총잔량 증감율
A4: 금 | B4: 2023-10-13 | C4: 15:35:00 | D4: 14867 | E4: 1854 | F4: 13866 | G4: 1712 | H4: -1001 | I4: 327.45 | J4: 0.08042096402 | K4: 7.049295775 | M4: 2023-10-13 | N4: 15:46:00 | O4: 11298 | P4: 1240 | Q4: 11489 | R4: 1268 | S4: 191 | T4: 327.85 | U4: -0.05056477053 | V4: 6.821428571 | W4: 327.85 | Y4: 상승 | Z4: 327.45 | AA4: =IF(AND(Y3="상승",Z4>W3),"성공",IF(AND(Y3="하락",Z4<W3),"성공",IF(AND(Y3="상승",Z4=W3),"동일가",IF(AND(Y3="하락",Z4=W3),"동일가","실패")))) -> 성공 | AB4: =S4/H4-1 -> -1.190809191
B5: 2023-10-16 | C5: 15:35:00 | D5: 15940 | E5: 1970 | F5: 11709 | G5: 1602 | H5: -4231 | I5: 325.05 | J5: -0.7823817943 | K5: 11.49728261 | M5: 2023-10-16 | N5: 15:46:00 | O5: 7849 | P5: 1022 | Q5: 5360 | R5: 774 | S5: -2489 | T5: 324.85 | U5: -0.7549745395 | V5: 10.03629032 | W5: 324.85 | Y5: =IF(H5>S5,"하락","상승") -> 상승 | Z5: 326.2 | AA5: 실패 | AB5: -0.4117229969
B6: 2023-10-17 | C6: 15:35:00 | D6: 13240 | E6: 1889 | F6: 17947 | G6: 2371 | H6: 4707 | I6: 328.7 | J6: 0.5603805378 | K6: 9.765560166 | M6: 2023-10-17 | N6: 15:46:00 | O6: 4526 | P6: 1045 | Q6: 8044 | R6: 1103 | S6: 3518 | T6: 328.8 | U6: 2.961737237 | V6: 60.65517241 | W6: 328.8 | Y6: 하락 | Z6: 327.15 | AA6: 성공 | AB6: -0.2526025069
B7: 2023-10-18 | C7: 15:35:00 | D7: 12859 | E7: 1924 | F7: 19132 | G7: 2629 | H7: 6273 | I7: 330.15 | J7: 0.5938198124 | K7: 8.89787234 | M7: 2023-10-18 | N7: 15:46:00 | O7: 5359 | P7: 994 | Q7: 9271 | R7: 1403 | S7: 3912 | T7: 330.2 | U7: 1.216634805 | V7: 9.564792176 | W7: 330.2 | Y7: 하락 | Z7: 327.95 | AA7: 성공 | AB7: -0.3763749402
B8: 2023-10-19 | C8: 15:35:00 | D8: 21327 | E8: 2960 | F8: 9834 | G8: 1197 | H8: -11493 | I8: 323.7 | J8: 1.01047128 | K8: 6.519001702 | M8: 2023-10-19 | N8: 15:46:00 | O8: 9871 | P8: 1718 | Q8: 5219 | R8: 684 | S8: -4652 | T8: 323.7 | U8: 1.8844825 | V8: 4.499032882 | W8: 323.7 | Y8: 상승 | Z8: 326.5 | AA8: 성공 | AB8: -0.5952318803
A9: 금 | B9: 2023-10-20 | C9: 15:35:00 | D9: 18708 | E9: 2366 | F9: 11741 | G9: 1732 | H9: -6967 | I9: 319.1 | J9: -0.263889643 | K9: 7.72796518 | M9: 2023-10-20 | N9: 15:46:00 | O9: 9208 | P9: 1203 | Q9: 6245 | R9: 949 | S9: -2963 | T9: 318.85 | U9: -1.073586669 | V9: 11.66535433 | W9: 318.85 | Y9: 상승 | Z9: 321 | AA9: 실패 | AB9: -0.5747093441
B10: 2023-10-23 | C10: 15:35:00 | D10: 14892 | E10: 2334 | F10: 14494 | G10: 1833 | H10: -398 | I10: 317.15 | J10: 1.52679314 | K10: 0.7944111776 | M10: 2023-10-23 | N10: 15:46:00 | O10: 8073 | P10: 1395 | Q10: 6831 | R10: 945 | S10: -1242 | T10: 317 | U10: 1.441474654 | V10: 2.76 | W10: 317 | Y10: 하락 | Z10: 317.15 | AA10: =IF(AND(Y9="상승",Z10>W9),"성공",IF(AND(Y9="하락",Z10<W9),"성공",IF(AND(Y9="상승",Z10=W9),"동일가",IF(AND(Y9="하락",Z10=W9),"동일가","실패")))) -> 실패 | AB10: =S10/H10-1 -> 2.120603015
B11: 2023-10-24 | C11: 15:35:00 | D11: 11514 | E11: 1530 | F11: 17453 | G11: 2719 | H11: 5939 | I11: 319.65 | J11: -1.106586187 | K11: 4.994953743 | M11: 2023-10-24 | N11: 15:46:00 | O11: 5906 | P11: 849 | Q11: 7700 | R11: 1211 | S11: 1794 | T11: 319.55 | U11: -0.598037814 | V11: 4.955801105 | W11: 319.55 | Y11: 하락 | Z11: 318.55 | AA11: 실패 | AB11: -0.6979289443
B12: 2023-10-25 | C12: 15:35:00 | D12: 18960 | E12: 2689 | F12: 10553 | G12: 1355 | H12: -8407 | I12: 317.75 | J12: 0.9912027057 | K12: 5.52532391 | M12: 2023-10-25 | N12: 15:46:00 | O12: 8726 | P12: 1370 | Q12: 4076 | R12: 566 | S12: -4650 | T12: 317.85 | U12: 0.8320703619 | V12: 5.78358209 | W12: 317.85 | Y12: 상승 | Z12: 320.3 | AA12: 실패 | AB12: -0.4468894968
B13: 2023-10-26 | C13: 15:35:00 | D13: 20611 | E13: 2970 | F13: 8651 | G13: 1141 | H13: -11960 | I13: 309.4 | J13: 0.5471770049 | K13: 6.249262537 | M13: 2023-10-26 | N13: 15:46:00 | O13: 8791 | P13: 1423 | Q13: 6158 | R13: 680 | S13: -2633 | T13: 309.15 | U13: 2.878088959 | V13: 3.543741588 | W13: 309.15 | Y13: =IF(H13>S13,"하락","상승") -> 상승 | Z13: 312.95 | AA13: 실패 | AB13: -0.7798494983
A14: 금 | B14: 2023-10-27 | C14: 15:35:00 | D14: 14273 | E14: 2133 | F14: 13278 | G14: 1990 | H14: -995 | I14: 309.5 | J14: -0.01915249006 | K14: 6.958041958 | M14: 2023-10-27 | N14: 15:46:00 | O14: 7000 | P14: 1081 | Q14: 6563 | R14: 956 | S14: -437 | T14: 309.2 | U14: 0.3895771001 | V14: 3.496 | W14: 309.2 | Y14: 상승 | Z14: 309.95 | AA14: 성공 | AB14: -0.5608040201
B15: 2023-10-30 | C15: 15:35:00 | D15: 10351 | E15: 1519 | F15: 18337 | G15: 2271 | H15: 7986 | I15: 310.3 | J15: 1.26006501 | K15: 10.61968085 | M15: 2023-10-30 | N15: 15:46:00 | O15: 3324 | P15: 627 | Q15: 7833 | R15: 941 | S15: 4509 | T15: 310.2 | U15: 3.022687866 | V15: 14.35987261 | W15: 310.2 | Y15: 하락 | Z15: 307.25 | AA15: 실패 | AB15: -0.4353869271
B16: 2023-10-31 | C16: 15:35:00 | D16: 19479 | E16: 2879 | F16: 10061 | G16: 1313 | H16: -9418 | I16: 306.75 | J16: 0.8967137877 | K16: 6.014048531 | M16: 2023-10-31 | N16: 15:46:00 | O16: 9313 | P16: 1622 | Q16: 4459 | R16: 643 | S16: -4854 | T16: 307.1 | U16: 1.19300424 | V16: 4.958120531 | W16: 307.1 | Y16: 상승 | Z16: 311.65 | AA16: =IF(AND(Y15="상승",Z16>W15),"성공",IF(AND(Y15="하락",Z16<W15),"성공",IF(AND(Y15="상승",Z16=W15),"동일가",IF(AND(Y15="하락",Z16=W15),"동일가","실패")))) -> 실패 | AB16: =S16/H16-1 -> -0.4846039499
B17: 2023-11-01 | C17: 15:35:00 | D17: 12505 | E17: 1840 | F17: 18703 | G17: 2301 | H17: 6198 | I17: 310.8 | J17: 1.332009476 | K17: 13.44468547 | M17: 2023-11-01 | N17: 15:46:00 | O17: 6095 | P17: 1011 | Q17: 7729 | R17: 1068 | S17: 1634 | T17: 311.05 | U17: 1.208206915 | V17: 28.66666667 | W17: 311.05 | Y17: 하락 | Z17: 308.4 | AA17: 성공 | AB17: -0.7363665699
B18: 2023-11-02 | C18: 15:35:00 | D18: 15256 | E18: 2159 | F18: 17094 | G18: 1861 | H18: 1838 | I18: 315.9 | J18: 2.119149834 | K18: -6.167785235 | M18: 2023-11-02 | N18: 15:46:00 | O18: 7632 | P18: 1221 | Q18: 7674 | R18: 962 | S18: 42 | T18: 316.15 | U18: 1.726516727 | V18: -0.1621621622 | W18: 316.15 | Y18: 하락 | Z18: 316.05 | AA18: 실패 | AB18: -0.9771490751
A19: 금 | B19: 2023-11-03 | C19: 15:35:00 | D19: 15120 | E19: 2050 | F19: 15477 | G19: 1950 | H19: 357 | I19: 319.5 | J19: 0.5613133208 | K19: -3.57 | M19: 2023-11-03 | N19: 15:45:00 | O19: 14160 | P19: 1654 | Q19: 13848 | R19: 1299 | S19: -312 | T19: 319.6 | U19: 2.099443996 | V19: 0.8788732394 | W19: 319.6 | Y19: =IF(H19>S19,"하락","상승") -> 하락 | Z19: 319.7 | AA19: 실패 | AB19: -1.87394958
B20: 2023-11-06 | C20: 15:35:00 | D20: 3920 | E20: 606 | F20: 24897 | G20: 3711 | H20: 20977 | I20: 334.4 | J20: 0.2403264579 | K20: 6.755877617 | M20: 2023-11-06 | N20: 15:45:00 | O20: 16699 | P20: 1125 | Q20: 25667 | R20: 2368 | S20: 8968 | T20: 335.3 | U20: -4.004450826 | V20: 7.214802896 | W20: 335.3 | Y20: 하락 | Z20: 324 | AA20: 실패 | AB20: -0.5724841493
B21: 2023-11-07 | C21: 15:35:00 | D21: 16844 | E21: 2310 | F21: 13014 | G21: 1871 | H21: -3830 | I21: 328.4 | J21: -0.3361361959 | K21: 8.724373576 | M21: 2023-11-07 | N21: 15:45:00 | O21: 18430 | P21: 1499 | Q21: 16567 | R21: 1414 | S21: -1863 | T21: 328.4 | U21: -0.5784558871 | V21: 21.91764706 | W21: 328.4 | Y21: 상승 | Z21: 334.9 | AA21: 성공 | AB21: -0.5135770235
B22: 2023-11-08 | C22: 15:35:00 | D22: 18810 | E22: 2785 | F22: 7789 | G22: 1052 | H22: -11021 | I22: 324.9 | J22: 0.6499528981 | K22: 6.35949221 | M22: 2023-11-08 | N22: 15:45:00 | O22: 16585 | P22: 2058 | Q22: 10002 | R22: 923 | S22: -6583 | T22: 325.1 | U22: 2.777608087 | V22: 5.8 | W22: 325.1 | Y22: 상승 | Z22: 331.1 | AA22: =IF(AND(Y21="상승",Z22>W21),"성공",IF(AND(Y21="하락",Z22<W21),"성공",IF(AND(Y21="상승",Z22=W21),"동일가",IF(AND(Y21="하락",Z22=W21),"동일가","실패")))) -> 성공 | AB22: =S22/H22-1 -> -0.4026857817
B23: 2023-11-09 | C23: 15:35:00 | D23: 13157 | E23: 1940 | F23: 8442 | G23: 726 | H23: -4715 | I23: 326.65 | J23: 4.846140411 | K23: 3.883855025 | M23: 2023-11-09 | N23: 15:45:00 | O23: 19892 | P23: 2460 | Q23: 11790 | R23: 1098 | S23: -8102 | T23: 326.7 | U23: 2.651526056 | V23: 5.948604993 | W23: =T23 -> 326.7 | Y23: 하락 | Z23: 325.95 | AA23: 성공 | AB23: 0.7183457052
A24: 금 | B24: 2023-11-10 | C24: 15:35:00 | D24: 14965 | E24: 2234 | F24: 15837 | G24: 2507 | H24: 872 | I24: 324.65 | J24: -0.3816345566 | K24: 3.194139194 | M24: 2023-11-10 | N24: 15:45:00 | O24: 12537 | P24: 1437 | Q24: 13881 | R24: 1574 | S24: 1344 | T24: 324.7 | U24: 0.09450676839 | V24: 9.810218978 | W24: 324.7 | Y24: 상승 | Z24: 324 | AA24: 성공 | AB24: 0.5412844037
B25: 2023-11-13 | C25: 15:35:00 | D25: 14877 | E25: 1935 | F25: 10824 | G25: 1241 | H25: -4053 | I25: 324.75 | J25: 1.033626295 | K25: 5.840057637 | M25: 2023-11-13 | N25: 15:45:00 | O25: 14131 | P25: 1907 | Q25: 10515 | R25: 1203 | S25: -3616 | T25: 325.1 | U25: 1.330580209 | V25: 5.136363636 | W25: 325.1 | Y25: =IF(H25>S25,"하락","상승") -> 상승 | Z25: 328.25 | AA25: 성공 | AB25: -0.1078213669
B26: 2023-11-14 | C26: 15:35:00 | D26: 13349 | E26: 1970 | F26: 15127 | G26: 2091 | H26: 1778 | I26: 327.65 | J26: 0.4581955055 | K26: 14.69421488 | M26: 2023-11-14 | N26: 15:45:00 | O26: 11995 | P26: 1573 | Q26: 13193 | R26: 1354 | S26: 1198 | T26: 327.8 | U26: 2.118166042 | V26: -5.470319635 | W26: 327.8 | Y26: 하락 | Z26: 326.6 | AA26: 성공 | AB26: -0.3262092238
B27: 2023-11-15 | C27: 15:35:00 | D27: 12553 | E27: 1770 | F27: 21897 | G27: 2890 | H27: 9344 | I27: 335.1 | J27: 0.4847262135 | K27: 8.342857143 | M27: 2023-11-15 | N27: 15:45:00 | O27: 13505 | P27: 1574 | Q27: 20304 | R27: 2003 | S27: 6799 | T27: 335.25 | U27: 1.556743982 | V27: 15.84848485 | W27: 335.25 | Y27: 하락 | Z27: 334.8 | AA27: 실패 | AB27: -0.2723672945
B28: 2023-11-16 | C28: 16:35:00 | D28: 15736 | E28: 1972 | F28: 15449 | G28: 1947 | H28: -287 | I28: 334.7 | J28: -0.04494458109 | K28: 11.48 | M28: 2023-11-16 | N28: 16:45:00 | O28: 14323 | P28: 1656 | Q28: 12603 | R28: 1365 | S28: -1720 | T28: 334.55 | U28: 0.5838124436 | V28: 5.910652921 | W28: 334.55 | Y28: 하락 | Z28: 334.35 | AA28: 성공 | AB28: 4.993031359
A29: 금 | B29: 2023-11-17 | C29: 15:35:00 | D29: 14539 | E29: 1874 | F29: 13556 | G29: 1595 | H29: -983 | I29: 333.05 | J29: 0.7407884832 | K29: 3.523297491 | M29: 2023-11-17 | N29: 15:45:00 | O29: 7777 | P29: 1096 | Q29: 5924 | R29: 838 | S29: -1853 | T29: 333.1 | U29: -0.02659050921 | V29: 7.182170543 | W29: 333.1 | Y29: 하락 | Z29: 334.2 | AA29: =IF(AND(Y28="상승",Z29>W28),"성공",IF(AND(Y28="하락",Z29<W28),"성공",IF(AND(Y28="상승",Z29=W28),"동일가",IF(AND(Y28="하락",Z29=W28),"동일가","실패")))) -> 성공 | AB29: =S29/H29-1 -> 0.8850457782
B30: 2023-11-20 | C30: 15:35:00 | D30: 11499 | E30: 1434 | F30: 19554 | G30: 2835 | H30: 8055 | I30: 335.55 | J30: -1.121473955 | K30: 5.749464668 | M30: 2023-11-20 | N30: 15:45:00 | O30: 4624 | P30: 708 | Q30: 8556 | R30: 1362 | S30: 3932 | T30: 335.55 | U30: -0.2491351203 | V30: 6.012232416 | W30: 335.55 | Y30: 하락 | Z30: 332.35 | AA30: 성공 | AB30: -0.5118559901
B31: 2023-11-21 | C31: 15:35:00 | D31: 13571 | E31: 1720 | F31: 13268 | G31: 1747 | H31: -303 | I31: 337.2 | J31: -0.2953824496 | K31: -11.22222222 | M31: 2023-11-21 | N31: 15:45:00 | O31: 6977 | P31: 1040 | Q31: 6827 | R31: 975 | S31: -150 | T31: 337.45 | U31: 0.2933974359 | V31: 2.307692308 | W31: 337.45 | Y31: =IF(H31>S31,"하락","상승") -> 상승 | Z31: 338 | AA31: 실패 | AB31: -0.504950495
B32: 2023-11-22 | C32: 15:35:00 | D32: 12155 | E32: 1603 | F32: 21455 | G32: 3128 | H32: 9300 | I32: 337.75 | J32: -0.7236421719 | K32: 6.098360656 | M32: 2023-11-22 | N32: 15:45:00 | O32: 9124 | P32: 1080 | Q32: 16184 | R32: 1840 | S32: 7060 | T32: 338 | U32: 0.3475040258 | V32: 9.289473684 | W32: 338 | Y32: 하락 | Z32: 335 | AA32: 실패 | AB32: -0.2408602151
B33: 2023-11-23 | C33: 15:35:00 | D33: 11017 | E33: 1962 | F33: 11446 | G33: 1862 | H33: 429 | I33: 337.6 | J33: 0.5319650152 | K33: -4.29 | M33: 2023-11-23 | N33: 15:45:00 | O33: 9842 | P33: 1464 | Q33: 11671 | R33: 1161 | S33: 1829 | T33: 337.95 | U33: 3.329863317 | V33: -6.03630363 | W33: 337.95 | Y33: 상승 | Z33: 337.45 | AA33: 성공 | AB33: 3.263403263
A34: 금 | B34: 2023-11-24 | C34: 15:35:00 | D34: 14724 | E34: 2624 | F34: 8163 | G34: 1053 | H34: -6561 | I34: 334.75 | J34: 2.140856264 | K34: 4.176320815 | M34: 2023-11-24 | N34: 15:45:00 | O34: 14916 | P34: 2014 | Q34: 8718 | R34: 815 | S34: -6198 | T34: 334.7 | U34: 3.290775614 | V34: 5.169307756 | W34: 334.7 | Y34: 상승 | Z34: 337.2 | AA34: 실패 | AB34: -0.05532693187
B35: 2023-11-27 | C35: 15:35:00 | D35: 16972 | E35: 2558 | F35: 14481 | G35: 1862 | H35: -2491 | I35: 334.2 | J35: 1.142250382 | K35: 3.579022989 | M35: 2023-11-27 | N35: 15:45:00 | O35: 11748 | P35: 1759 | Q35: 12065 | R35: 1236 | S35: 317 | T35: 334.2 | U35: 3.082532091 | V35: -0.6061185468 | W35: 334.2 | Y35: 상승 | Z35: 334.35 | AA35: 실패 | AB35: -1.127258129
B36: 2023-11-28 | C36: 15:35:00 | D36: 10701 | E36: 1284 | F36: 19672 | G36: 3042 | H36: 8971 | I36: 338.25 | J36: -1.86731399 | K36: 5.102957907 | M36: 2023-11-28 | N36: 15:45:00 | O36: 10306 | P36: 1177 | Q36: 16153 | R36: 1705 | S36: 5847 | T36: 338.4 | U36: 0.7177405651 | V36: 11.07386364 | W36: 338.4 | Y36: 하락 | Z36: 335.75 | AA36: =IF(AND(Y35="상승",Z36>W35),"성공",IF(AND(Y35="하락",Z36<W35),"성공",IF(AND(Y35="상승",Z36=W35),"동일가",IF(AND(Y35="하락",Z36=W35),"동일가","실패")))) -> 성공 | AB36: =S36/H36-1 -> -0.3482331959
B37: 2023-11-29 | C37: 15:35:00 | D37: 13518 | E37: 1890 | F37: 16056 | G37: 2344 | H37: 2538 | I37: 337.3 | J37: -0.3025516008 | K37: 5.59030837 | M37: 2023-11-29 | N37: 15:45:00 | O37: 9769 | P37: 1267 | Q37: 12661 | R37: 1346 | S37: 2892 | T37: 337.55 | U37: 1.696049917 | V37: 36.60759494 | W37: 337.55 | Y37: =IF(H37>S37,"하락","상승") -> 상승 | Z37: 338.35 | AA37: 성공 | AB37: 0.1394799054
B38: 2023-11-30 | C38: 15:35:00 | D38: 12252 | E38: 1347 | F38: 20299 | G38: 2994 | H38: 8047 | I38: 339.05 | J38: -2.315875255 | K38: 4.885853066 | M38: 2023-11-30 | N38: 15:45:00 | O38: 12711 | P38: 1064 | Q38: 15831 | R38: 1811 | S38: 3120 | T38: 339.15 | U38: -3.204849333 | V38: 4.176706827 | W38: 339.15 | Y38: 하락 | Z38: 337.05 | AA38: 실패 | AB38: -0.6122778675
A39: 금 | B39: 2023-12-01 | C39: 15:35:00 | D39: 16548 | E39: 2482 | F39: 11783 | G39: 1535 | H39: -4765 | I39: 335.15 | J39: 1.009017631 | K39: 5.031678986 | M39: 2023-12-01 | N39: 15:45:00 | O39: 13881 | P39: 1676 | Q39: 10641 | R39: 1152 | S39: -3240 | T39: 335.5 | U39: 0.9547595963 | V39: 6.183206107 | W39: 335.5 | Y39: 상승 | Z39: 337.75 | AA39: 성공 | AB39: -0.3200419727
B40: 2023-12-04 | C40: 15:35:00 | D40: 14822 | E40: 1997 | F40: 14749 | G40: 1800 | H40: -73 | I40: 336.7 | J40: 0.7717556891 | K40: 0.3705583756 | M40: 2023-12-04 | N40: 15:45:00 | O40: 12105 | P40: 1572 | Q40: 11318 | R40: 1157 | S40: -787 | T40: 336.7 | U40: 2.081813653 | V40: 1.896385542 | W40: 336.7 | Y40: 하락 | Z40: 337.05 | AA40: 성공 | AB40: 9.780821918
B41: 2023-12-05 | C41: 15:35:00 | D41: 15391 | E41: 2238 | F41: 10643 | G41: 1102 | H41: -4748 | I41: 332.65 | J41: 2.780772306 | K41: 4.179577465 | M41: 2023-12-05 | N41: 15:45:00 | O41: 14028 | P41: 1583 | Q41: 10041 | R41: 839 | S41: -3987 | T41: 332.65 | U41: 3.106163747 | V41: 5.358870968 | W41: 332.65 | Y41: 상승 | Z41: 334.15 | AA41: 성공 | AB41: -0.1602780118
B42: 2023-12-06 | C42: 15:35:00 | D42: 13958 | E42: 1907 | F42: 15189 | G42: 1516 | H42: 1231 | I42: 333.9 | J42: 2.699779524 | K42: -3.148337596 | M42: 2023-12-06 | N42: 15:45:00 | O42: 12316 | P42: 1381 | Q42: 11653 | R42: 1107 | S42: -663 | T42: 333.5 | U42: 1.608473364 | V42: 2.419708029 | W42: 333.5 | Y42: 하락 | Z42: 333.8 | AA42: =IF(AND(Y41="상승",Z42>W41),"성공",IF(AND(Y41="하락",Z42<W41),"성공",IF(AND(Y41="상승",Z42=W41),"동일가",IF(AND(Y41="하락",Z42=W41),"동일가","실패")))) -> 성공 | AB42: =S42/H42-1 -> -1.538586515
B43: 2023-12-07 | C43: 15:35:00 | D43: 12299 | E43: 1489 | F43: 15158 | G43: 1957 | H43: 2859 | I43: 333 | J43: -0.5143771064 | K43: 6.108974359 | M43: 2023-12-07 | N43: 15:45:00 | O43: 11173 | P43: 1117 | Q43: 12060 | R43: 1519 | S43: 887 | T43: 332.4 | U43: -2.063251927 | V43: 2.206467662 | W43: 332.4 | Y43: =IF(H43>S43,"하락","상승") -> 하락 | Z43: 331.8 | AA43: =IF(AND(Y42="상승",Z43>W42),"성공",IF(AND(Y42="하락",Z43<W42),"성공",IF(AND(Y42="상승",Z43=W42),"동일가",IF(AND(Y42="하락",Z43=W42),"동일가","실패")))) -> 성공 | AB43: =S43/H43-1 -> -0.6897516614
B44: 2023-12-08 | C44: 15:35:00 | D44: 11485 | E44: 1233 | F44: 17894 | G44: 2482 | H44: 6409 | I44: 337.2 | J44: -2.105171182 | K44: 5.131305044 | M44: 2023-12-08 | N44: 15:45:00 | O44: 12935 | P44: 1290 | Q44: 15739 | R44: 1812 | S44: 2804 | T44: 337.25 | U44: -1.341149443 | V44: 5.37164751 | W44: 337.25 | Y44: =IF(H44>S44,"하락","상승") -> 하락 | Z44: 334.8 | AA44: =IF(AND(Y43="상승",Z44>W43),"성공",IF(AND(Y43="하락",Z44<W43),"성공",IF(AND(Y43="상승",Z44=W43),"동일가",IF(AND(Y43="하락",Z44=W43),"동일가","실패")))) -> 실패 | AB44: =S44/H44-1 -> -0.5624902481
B45: 2023-12-11 | C45: 15:35:00 | D45: 13135 | E45: 1427 | F45: 17334 | G45: 2336 | H45: 4199 | I45: 338.3 | J45: -1.784248375 | K45: 4.619361936 | M45: 2023-12-11 | N45: 15:45:00 | O45: 11811 | P45: 1168 | Q45: 12822 | R45: 1447 | S45: 1011 | T45: 338.25 | U45: -1.25106562 | V45: 3.623655914 | W45: 338.25 | Y45: =IF(H45>S45,"하락","상승") -> 하락 | Z45: 338 | AA45: =IF(AND(Y44="상승",Z45>W44),"성공",IF(AND(Y44="하락",Z45<W44),"성공",IF(AND(Y44="상승",Z45=W44),"동일가",IF(AND(Y44="하락",Z45=W44),"동일가","실패")))) -> 실패 | AB45: =S45/H45-1 -> -0.7592283877
B46: 2023-12-12 | C46: 15:35:00 | D46: 12966 | E46: 1565 | F46: 15848 | G46: 1966 | H46: 2882 | I46: 340.45 | J46: -0.2239463857 | K46: 7.187032419 | M46: 2023-12-12 | N46: 15:45:00 | O46: 10545 | P46: 1314 | Q46: 11919 | R46: 1160 | S46: 1374 | T46: 340.5 | U46: 2.249885845 | V46: -8.922077922 | W46: 340.5 | Y46: =IF(H46>S46,"하락","상승") -> 하락 | Z46: 340.05 | AA46: =IF(AND(Y45="상승",Z46>W45),"성공",IF(AND(Y45="하락",Z46<W45),"성공",IF(AND(Y45="상승",Z46=W45),"동일가",IF(AND(Y45="하락",Z46=W45),"동일가","실패")))) -> 실패 | AB46: =S46/H46-1 -> -0.5232477446
B47: 2023-12-13 | C47: 15:35:00 | D47: 17299 | E47: 2207 | F47: 10286 | G47: 1128 | H47: -7013 | I47: 336.8 | J47: 1.280552369 | K47: 6.499536608 | M47: 2023-12-13 | N47: 15:45:00 | O47: 12052 | P47: 1597 | Q47: 7190 | R47: 824 | S47: -4862 | T47: 337 | U47: 1.179078187 | V47: 6.289780078 | W47: 337 | Y47: =IF(H47>S47,"하락","상승") -> 상승 | Z47: 340.95 | AA47: =IF(AND(Y46="상승",Z47>W46),"성공",IF(AND(Y46="하락",Z47<W46),"성공",IF(AND(Y46="상승",Z47=W46),"동일가",IF(AND(Y46="하락",Z47=W46),"동일가","실패")))) -> 실패 | AB47: =S47/H47-1 -> -0.3067160987
B48: 2023-12-14 | C48: 15:35:00 | D48: 5049 | E48: 498 | F48: 5005 | G48: 446 | H48: -44 | I48: 340.75 | J48: 1.083418877 | K48: 0.8461538462 | M48: 2023-12-14 | N48: 15:45:00 | O48: 5049 | P48: 498 | Q48: 5005 | R48: 446 | S48: -44 | T48: 340.75 | U48: 1.083418877 | V48: 0.8461538462 | W48: 340.75 | Y48: =IF(H48>S48,"하락","상승") -> 상승 | Z48: 341.25 | AA48: =IF(AND(Y47="상승",Z48>W47),"성공",IF(AND(Y47="하락",Z48<W47),"성공",IF(AND(Y47="상승",Z48=W47),"동일가",IF(AND(Y47="하락",Z48=W47),"동일가","실패")))) -> 성공 | AB48: =S48/H48-1 -> 0
B49: 2023-12-15 | C49: 15:35:00 | D49: 8978 | E49: 1586 | F49: 9221 | G49: 1561 | H49: 243 | I49: 343.55 | J49: 0.2463289853 | K49: -9.72 | M49: 2023-12-15 | N49: 15:45:00 | O49: 9208 | P49: 1301 | Q49: 8820 | R49: 1241 | S49: -388 | T49: 343.25 | U49: 0.02953904546 | V49: 6.466666667 | W49: 343.25 | Y49: =IF(H49>S49,"하락","상승") -> 하락 | Z49: 341.3 | AA49: =IF(AND(Y48="상승",Z49>W48),"성공",IF(AND(Y48="하락",Z49<W48),"성공",IF(AND(Y48="상승",Z49=W48),"동일가",IF(AND(Y48="하락",Z49=W48),"동일가","실패")))) -> 성공 | AB49: =S49/H49-1 -> -2.596707819
B50: 2023-12-18 | C50: 15:35:00 | D50: 9830 | E50: 1382 | F50: 15643 | G50: 2454 | H50: 5813 | I50: 344.45 | J50: -0.7383892567 | K50: 5.422574627 | M50: 2023-12-18 | N50: 15:45:00 | O50: 11057 | P50: 1290 | Q50: 14620 | R50: 1731 | S50: 3563 | T50: 344.45 | U50: -0.1253328497 | V50: 8.079365079 | W50: 344.45 | Y50: =IF(H50>S50,"하락","상승") -> 하락 | Z50: 343.25 | AA50: =IF(AND(Y49="상승",Z50>W49),"성공",IF(AND(Y49="하락",Z50<W49),"성공",IF(AND(Y49="상승",Z50=W49),"동일가",IF(AND(Y49="하락",Z50=W49),"동일가","실패")))) -> 동일가 | AB50: =S50/H50-1 -> -0.3870634784
B51: 2023-12-19 | C51: 15:35:00 | D51: 10399 | E51: 1156 | F51: 17760 | G51: 2782 | H51: 7361 | I51: 344.85 | J51: -2.611778263 | K51: 4.527060271 | M51: 2023-12-19 | N51: 15:45:00 | O51: 10003 | P51: 1016 | Q51: 12969 | R51: 1819 | S51: 2966 | T51: 344.75 | U51: -2.715730825 | V51: 3.693648817 | W51: 344.75 | Y51: =IF(H51>S51,"하락","상승") -> 하락 | Z51: 343.8 | AA51: =IF(AND(Y50="상승",Z51>W50),"성공",IF(AND(Y50="하락",Z51<W50),"성공",IF(AND(Y50="상승",Z51=W50),"동일가",IF(AND(Y50="하락",Z51=W50),"동일가","실패")))) -> 성공 | AB51: =S51/H51-1 -> -0.5970656161
B52: 2023-12-20 | C52: 15:35:00 | D52: 7000 | E52: 843 | F52: 21481 | G52: 3357 | H52: 14481 | I52: 351.6 | J52: -1.904809306 | K52: 5.760143198 | M52: 2023-12-20 | N52: 15:45:00 | O52: 9570 | P52: 1087 | Q52: 16511 | R52: 2078 | S52: 6941 | T52: 351.65 | U52: -0.8584270489 | V52: 7.004036327 | W52: 351.65 | Y52: =IF(H52>S52,"하락","상승") -> 하락 | Z52: 347.2 | AA52: =IF(AND(Y51="상승",Z52>W51),"성공",IF(AND(Y51="하락",Z52<W51),"성공",IF(AND(Y51="상승",Z52=W51),"동일가",IF(AND(Y51="하락",Z52=W51),"동일가","실패")))) -> 실패 | AB52: =S52/H52-1 -> -0.5206822733
B53: 2023-12-21 | C53: 15:35:00 | D53: 12381 | E53: 1602 | F53: 15853 | G53: 2227 | H53: 3472 | I53: 349.15 | J53: -0.6099192915 | K53: 5.5552 | M53: 2023-12-21 | N53: 15:45:00 | O53: 14127 | P53: 1274 | Q53: 15463 | R53: 1685 | S53: 1336 | T53: 348.9 | U53: -1.911842418 | V53: 3.250608273 | W53: 348.9 | Y53: =IF(H53>S53,"하락","상승") -> 하락 | Z53: 349 | AA53: =IF(AND(Y52="상승",Z53>W52),"성공",IF(AND(Y52="하락",Z53<W52),"성공",IF(AND(Y52="상승",Z53=W52),"동일가",IF(AND(Y52="하락",Z53=W52),"동일가","실패")))) -> 성공 | AB53: =S53/H53-1 -> -0.6152073733
B54: 2023-12-22 | C54: 15:35:00 | D54: 12991 | E54: 1972 | F54: 15796 | G54: 2085 | H54: 2805 | I54: 350.65 | J54: 0.9882909899 | K54: 24.82300885 | M54: 2023-12-22 | N54: 15:45:00 | O54: 11655 | P54: 1550 | Q54: 11624 | R54: 1290 | S54: -31 | T54: 350.7 | U54: 1.491497874 | V54: 0.1192307692 | W54: 350.7 | Y54: =IF(H54>S54,"하락","상승") -> 하락 | Z54: 351.45 | AA54: =IF(AND(Y53="상승",Z54>W53),"성공",IF(AND(Y53="하락",Z54<W53),"성공",IF(AND(Y53="상승",Z54=W53),"동일가",IF(AND(Y53="하락",Z54=W53),"동일가","실패")))) -> 실패 | AB54: =S54/H54-1 -> -1.011051693
B55: 2023-12-26 | C55: 15:35:00 | D55: 16475 | E55: 2183 | F55: 19682 | G55: 2988 | H55: 3207 | I55: 351.75 | J55: -0.9599390078 | K55: 3.983850932 | M55: 2023-12-26 | N55: 15:45:00 | O55: 12009 | P55: 1658 | Q55: 14016 | R55: 1527 | S55: 2007 | T55: 352 | U55: 1.94 | V55: -15.32 | W55: 352 | Y55: =IF(H55>S55,"하락","상승") -> 하락 | Z55: 352.45 | AA55: =IF(AND(Y54="상승",Z55>W54),"성공",IF(AND(Y54="하락",Z55<W54),"성공",IF(AND(Y54="상승",Z55=W54),"동일가",IF(AND(Y54="하락",Z55=W54),"동일가","실패")))) -> 실패 | AB55: =S55/H55-1 -> -0.374181478
B56: 2023-12-27 | C56: 15:35:00 | D56: 7706 | E56: 929 | F56: 19119 | G56: 2936 | H56: 11413 | I56: 356.1 | J56: -1.783019816 | K56: 5.686596911 | M56: 2023-12-27 | N56: 15:45:00 | O56: 11304 | P56: 867 | Q56: 15529 | R56: 2076 | S56: 4225 | T56: 355.9 | U56: -5.56 | V56: 3.49 | W56: 355.9 | Y56: =IF(H56>S56,"하락","상승") -> 하락 | Z56: 352.15 | AA56: =IF(AND(Y55="상승",Z56>W55),"성공",IF(AND(Y55="하락",Z56<W55),"성공",IF(AND(Y55="상승",Z56=W55),"동일가",IF(AND(Y55="하락",Z56=W55),"동일가","실패")))) -> 실패 | AB56: =S56/H56-1 -> -0.6298081136
B57: 2023-12-28 | C57: 15:35:00 | D57: 5072 | E57: 526 | F57: 23482 | G57: 3004 | H57: 18410 | I57: 362.3 | J57: -1.825674766 | K57: 7.429378531 | M57: 2023-12-28 | N57: 15:45:00 | O57: 11538 | P57: 812 | Q57: 22601 | R57: 2206 | S57: 11063 | T57: 362.7 | U57: -3.964119352 | V57: 7.93615495 | W57: 362.7 | Y57: =IF(H57>S57,"하락","상승") -> 하락 | Z57: 355.5 | AA57: =IF(AND(Y56="상승",Z57>W56),"성공",IF(AND(Y56="하락",Z57<W56),"성공",IF(AND(Y56="상승",Z57=W56),"동일가",IF(AND(Y56="하락",Z57=W56),"동일가","실패")))) -> 성공 | AB57: =S57/H57-1 -> -0.3990765888
B58: 2024-01-02 | C58: 15:35:00 | D58: 12796 | E58: 1579 | F58: 17048 | G58: 2869 | H58: 4252 | I58: 363.45 | J58: -2.161723086 | K58: 3.296124031 | M58: 2024-01-02 | N58: 15:45:00 | O58: 11588 | P58: 1326 | Q58: 15431 | R58: 2331 | S58: 3843 | T58: 363.8 | U58: -2.119159237 | V58: 3.823880597 | W58: 363.8 | Y58: =IF(H58>S58,"하락","상승") -> 하락 | Z58: 360.7 | AA58: =IF(AND(Y57="상승",Z58>W57),"성공",IF(AND(Y57="하락",Z58<W57),"성공",IF(AND(Y57="상승",Z58=W57),"동일가",IF(AND(Y57="하락",Z58=W57),"동일가","실패")))) -> 성공 | AB58: =S58/H58-1 -> -0.09619002822
B59: 2024-01-03 | C59: 15:35:00 | D59: 16680 | E59: 2912 | F59: 7392 | G59: 1069 | H59: -9288 | I59: 353.55 | J59: 1.186851736 | K59: 5.039609333 | M59: 2024-01-03 | N59: 15:45:00 | O59: 20999 | P59: 2023 | Q59: 15855 | R59: 1310 | S59: -5144 | T59: 353.6 | U59: 1.722924913 | V59: 7.214586255 | W59: 353.6 | Y59: =IF(H59>S59,"하락","상승") -> 상승 | Z59: 359.7 | AA59: =IF(AND(Y58="상승",Z59>W58),"성공",IF(AND(Y58="하락",Z59<W58),"성공",IF(AND(Y58="상승",Z59=W58),"동일가",IF(AND(Y58="하락",Z59=W58),"동일가","실패")))) -> 성공 | AB59: =S59/H59-1 -> -0.4461670973
B60: 2024-01-04 | C60: 15:35:00 | D60: 17439 | E60: 2513 | F60: 13205 | G60: 1961 | H60: -4234 | I60: 350.3 | J60: -0.2057052435 | K60: 7.670289855 | M60: 2024-01-04 | N60: 15:45:00 | O60: 15343 | P60: 1737 | Q60: 15163 | R60: 1698 | S60: -180 | T60: 350.3 | U60: 0.09687206935 | V60: 4.615384615 | W60: 350.3 | Y60: =IF(H60>S60,"하락","상승") -> 상승 | Z60: 350.2 | AA60: =IF(AND(Y59="상승",Z60>W59),"성공",IF(AND(Y59="하락",Z60<W59),"성공",IF(AND(Y59="상승",Z60=W59),"동일가",IF(AND(Y59="하락",Z60=W59),"동일가","실패")))) -> 실패 | AB60: =S60/H60-1 -> -0.9574870099
B61: 2024-01-05 | C61: 15:35:00 | D61: 14354 | E61: 2580 | F61: 11594 | G61: 1853 | H61: -2760 | I61: 348.85 | J61: 0.6933148425 | K61: 3.796423659 | M61: 2024-01-05 | N61: 15:45:00 | O61: 13234 | P61: 1848 | Q61: 11795 | R61: 1524 | S61: -1439 | T61: 348.7 | U61: 0.5782459011 | V61: 4.441358025 | W61: 348.7 | Y61: =IF(H61>S61,"하락","상승") -> 상승 | Z61: 349.35 | AA61: =IF(AND(Y60="상승",Z61>W60),"성공",IF(AND(Y60="하락",Z61<W60),"성공",IF(AND(Y60="상승",Z61=W60),"동일가",IF(AND(Y60="하락",Z61=W60),"동일가","실패")))) -> 실패 | AB61: =S61/H61-1 -> -0.4786231884
B62: 2024-01-08 | C62: 15:35:00 | D62: 17709 | E62: 3057 | F62: 11569 | G62: 1466 | H62: -6140 | I62: 347.55 | J62: 2.098607361 | K62: 3.859208045 | M62: 2024-01-08 | N62: 15:45:00 | O62: 12577 | P62: 2133 | Q62: 8725 | R62: 1126 | S62: -3852 | T62: 347.4 | U62: 1.85227779 | V62: 3.825223436 | W62: 347.4 | Y62: =IF(H62>S62,"하락","상승") -> 상승 | Z62: 350.35 | AA62: =IF(AND(Y61="상승",Z62>W61),"성공",IF(AND(Y61="하락",Z62<W61),"성공",IF(AND(Y61="상승",Z62=W61),"동일가",IF(AND(Y61="하락",Z62=W61),"동일가","실패")))) -> 성공 | AB62: =S62/H62-1 -> -0.3726384365
B63: 2024-01-09 | C63: 15:35:00 | D63: 19016 | E63: 3364 | F63: 9723 | G63: 1185 | H63: -9293 | I63: 346.35 | J63: 2.552268999 | K63: 4.264800367 | M63: 2024-01-09 | N63: 15:45:00 | O63: 13890 | P63: 2204 | Q63: 9402 | R63: 1003 | S63: -4488 | T63: 346.3 | U63: 3.071700506 | V63: 3.736885928 | W63: 346.3 | Y63: =IF(H63>S63,"하락","상승") -> 상승 | Z63: 351.4 | AA63: =IF(AND(Y62="상승",Z63>W62),"성공",IF(AND(Y62="하락",Z63<W62),"성공",IF(AND(Y62="상승",Z63=W62),"동일가",IF(AND(Y62="하락",Z63=W62),"동일가","실패")))) -> 성공 | AB63: =S63/H63-1 -> -0.5170558485
B64: 2024-01-10 | C64: 15:35:00 | D64: 17124 | E64: 2561 | F64: 12748 | G64: 1491 | H64: -4376 | I64: 342.7 | J64: 1.86351586 | K64: 4.089719626 | M64: 2024-01-10 | N64: 15:45:00 | O64: 12851 | P64: 1696 | Q64: 9982 | R64: 1115 | S64: -2869 | T64: 342.7 | U64: 1.375225802 | V64: 4.938037866 | W64: 342.7 | Y64: =IF(H64>S64,"하락","상승") -> 상승 | Z64: 345.35 | AA64: =IF(AND(Y63="상승",Z64>W63),"성공",IF(AND(Y63="하락",Z64<W63),"성공",IF(AND(Y63="상승",Z64=W63),"동일가",IF(AND(Y63="하락",Z64=W63),"동일가","실패")))) -> 실패 | AB64: =S64/H64-1 -> -0.3443784278
B65: 2024-01-11 | C65: 15:35:00 | D65: 12642 | E65: 1650 | F65: 15502 | G65: 2211 | H65: 2860 | I65: 343.55 | J65: -0.650511081 | K65: 5.098039216 | M65: 2024-01-11 | N65: 15:45:00 | O65: 11614 | P65: 1321 | Q65: 12143 | R65: 1494 | S65: 529 | T65: 343.55 | U65: -0.6639796633 | V65: 3.057803468 | W65: 343.55 | Y65: =IF(H65>S65,"하락","상승") -> 하락 | Z65: 344.45 | AA65: =IF(AND(Y64="상승",Z65>W64),"성공",IF(AND(Y64="하락",Z65<W64),"성공",IF(AND(Y64="상승",Z65=W64),"동일가",IF(AND(Y64="하락",Z65=W64),"동일가","실패")))) -> 성공 | AB65: =S65/H65-1 -> -0.815034965
B66: 2024-01-12 | C66: 15:35:00 | D66: 13696 | E66: 1883 | F66: 10336 | G66: 1233 | H66: -3360 | I66: 339.75 | J66: 1.109306429 | K66: 5.169230769 | M66: 2024-01-12 | N66: 15:45:00 | O66: 12564 | P66: 1475 | Q66: 10811 | R66: 1115 | S66: -1753 | T66: 340 | U66: 1.177998024 | V66: 4.869444444 | W66: 340 | Y66: =IF(H66>S66,"하락","상승") -> 상승 | Z66: 341.5 | AA66: =IF(AND(Y65="상승",Z66>W65),"성공",IF(AND(Y65="하락",Z66<W65),"성공",IF(AND(Y65="상승",Z66=W65),"동일가",IF(AND(Y65="하락",Z66=W65),"동일가","실패")))) -> 성공 | AB66: =S66/H66-1 -> -0.4782738095
B67: 2024-01-15 | C67: 15:35:00 | D67: 13174 | E67: 1907 | F67: 14904 | G67: 2091 | H67: 1730 | I67: 341.2 | J67: 0.219457274 | K67: 9.402173913 | M67: 2024-01-15 | N67: 15:45:00 | O67: 11622 | P67: 1409 | Q67: 12901 | R67: 1539 | S67: 1279 | T67: 341.3 | U67: 0.1343129266 | V67: 9.838461538 | W67: 341.3 | Y67: =IF(H67>S67,"하락","상승") -> 하락 | Z67: 340 | AA67: =IF(AND(Y66="상승",Z67>W66),"성공",IF(AND(Y66="하락",Z67<W66),"성공",IF(AND(Y66="상승",Z67=W66),"동일가",IF(AND(Y66="하락",Z67=W66),"동일가","실패")))) -> 동일가 | AB67: =S67/H67-1 -> -0.2606936416
B68: 2024-01-16 | C68: 15:35:00 | D68: 18119 | E68: 2800 | F68: 9431 | G68: 1346 | H68: -8688 | I68: 335.95 | J68: 0.5356150499 | K68: 5.975240715 | M68: 2024-01-16 | N68: 15:45:00 | O68: 15167 | P68: 1780 | Q68: 9652 | R68: 1187 | S68: -5515 | T68: 336 | U68: -0.3893627595 | V68: 9.300168634 | W68: 336 | Y68: =IF(H68>S68,"하락","상승") -> 상승 | Z68: 339.55 | AA68: =IF(AND(Y67="상승",Z68>W67),"성공",IF(AND(Y67="하락",Z68<W67),"성공",IF(AND(Y67="상승",Z68=W67),"동일가",IF(AND(Y67="하락",Z68=W67),"동일가","실패")))) -> 성공 | AB68: =S68/H68-1 -> -0.3652163904
B69: 2024-01-17 | C69: 15:35:00 | D69: 20456 | E69: 3377 | F69: 7876 | G69: 1093 | H69: -12580 | I69: 327.45 | J69: 1.148408005 | K69: 5.507880911 | M69: 2024-01-17 | N69: 15:45:00 | O69: 20144 | P69: 2289 | Q69: 12625 | R69: 1209 | S69: -7519 | T69: 327.3 | U69: 1.642164977 | V69: 6.962037037 | W69: 327.3 | Y69: =IF(H69>S69,"하락","상승") -> 상승 | Z69: 336.45 | AA69: =IF(AND(Y68="상승",Z69>W68),"성공",IF(AND(Y68="하락",Z69<W68),"성공",IF(AND(Y68="상승",Z69=W68),"동일가",IF(AND(Y68="하락",Z69=W68),"동일가","실패")))) -> 성공 | AB69: =S69/H69-1 -> -0.4023052464
B70: 2024-01-18 | C70: 15:35:00 | D70: 12717 | E70: 1856 | F70: 16598 | G70: 2286 | H70: 3881 | I70: 329.05 | J70: 0.4088855138 | K70: 9.025581395 | M70: 2024-01-18 | N70: 15:45:00 | O70: 16931 | P70: 1471 | Q70: 16848 | R70: 1374 | S70: -83 | T70: 329.1 | U70: 0.7521514937 | V70: 0.8556701031 | W70: 329.1 | Y70: =IF(H70>S70,"하락","상승") -> 하락 | Z70: 328.7 | AA70: =IF(AND(Y69="상승",Z70>W69),"성공",IF(AND(Y69="하락",Z70<W69),"성공",IF(AND(Y69="상승",Z70=W69),"동일가",IF(AND(Y69="하락",Z70=W69),"동일가","실패")))) -> 성공 | AB70: =S70/H70-1 -> -1.021386241
B71: 2024-01-19 | C71: 15:35:00 | D71: 11598 | E71: 1739 | F71: 16362 | G71: 2379 | H71: 4764 | I71: 333.95 | J71: 0.2083294961 | K71: 7.44375 | M71: 2024-01-19 | N71: 15:45:00 | O71: 15843 | P71: 1619 | Q71: 14448 | R71: 1527 | S71: -1395 | T71: 333.65 | U71: -0.3239805793 | V71: 15.16304348 | W71: 333.65 | Y71: =IF(H71>S71,"하락","상승") -> 하락 | Z71: 333 | AA71: =IF(AND(Y70="상승",Z71>W70),"성공",IF(AND(Y70="하락",Z71<W70),"성공",IF(AND(Y70="상승",Z71=W70),"동일가",IF(AND(Y70="하락",Z71=W70),"동일가","실패")))) -> 실패 | AB71: =S71/H71-1 -> -1.292821159
B72: 2024-01-22 | C72: 15:35:00 | D72: 15935 | E72: 2677 | F72: 11638 | G72: 1703 | H72: -4297 | I72: 334.65 | J72: 0.8812638314 | K72: 4.411704312 | M72: 2024-01-22 | N72: 15:45:00 | O72: 13415 | P72: 1864 | Q72: 10143 | R72: 1270 | S72: -3272 | T72: 334.5 | U72: 0.7897257612 | V72: 5.508417508 | W72: 334.5 | Y72: =IF(H72>S72,"하락","상승") -> 상승 | Z72: 337.05 | AA72: =IF(AND(Y71="상승",Z72>W71),"성공",IF(AND(Y71="하락",Z72<W71),"성공",IF(AND(Y71="상승",Z72=W71),"동일가",IF(AND(Y71="하락",Z72=W71),"동일가","실패")))) -> 실패 | AB72: =S72/H72-1 -> -0.2385385152
B73: 2024-01-23 | C73: 15:35:00 | D73: 12427 | E73: 1736 | F73: 17048 | G73: 2830 | H73: 4621 | I73: 336.25 | J73: -1.13438187 | K73: 4.223948812 | M73: 2024-01-23 | N73: 15:45:00 | O73: 12771 | P73: 1407 | Q73: 13016 | R73: 1642 | S73: 245 | T73: 336.45 | U73: -1.14984067 | V73: 1.042553191 | W73: 336.45 | Y73: =IF(H73>S73,"하락","상승") -> 하락 | Z73: 334 | AA73: =IF(AND(Y72="상승",Z73>W72),"성공",IF(AND(Y72="하락",Z73<W72),"성공",IF(AND(Y72="상승",Z73=W72),"동일가",IF(AND(Y72="하락",Z73=W72),"동일가","실패")))) -> 실패 | AB73: =S73/H73-1 -> -0.9469811729
B74: 2024-01-24 | C74: 15:35:00 | D74: 16209 | E74: 2415 | F74: 11797 | G74: 1977 | H74: -4412 | I74: 334.55 | J74: -0.7446793404 | K74: 10.07305936 | M74: 2024-01-24 | N74: 15:45:00 | O74: 14707 | P74: 1725 | Q74: 11843 | R74: 1391 | S74: -2864 | T74: 334.85 | U74: -0.01177840986 | V74: 8.574850299 | W74: 334.85 | Y74: =IF(H74>S74,"하락","상승") -> 상승 | Z74: 337.1 | AA74: =IF(AND(Y73="상승",Z74>W73),"성공",IF(AND(Y73="하락",Z74<W73),"성공",IF(AND(Y73="상승",Z74=W73),"동일가",IF(AND(Y73="하락",Z74=W73),"동일가","실패")))) -> 실패 | AB74: =S74/H74-1 -> -0.3508612874
B75: 2024-01-25 | C75: 15:35:00 | D75: 15233 | E75: 2064 | F75: 12770 | G75: 1775 | H75: -2463 | I75: 335.05 | J75: -0.1859632602 | K75: 8.522491349 | M75: 2024-01-25 | N75: 15:45:00 | O75: 12771 | P75: 1571 | Q75: 11063 | R75: 1221 | S75: -1708 | T75: 335.05 | U75: 0.9313890014 | V75: 4.88 | W75: 335.05 | Y75: =IF(H75>S75,"하락","상승") -> 상승 | Z75: 334.7 | AA75: =IF(AND(Y74="상승",Z75>W74),"성공",IF(AND(Y74="하락",Z75<W74),"성공",IF(AND(Y74="상승",Z75=W74),"동일가",IF(AND(Y74="하락",Z75=W74),"동일가","실패")))) -> 실패 | AB75: =S75/H75-1 -> -0.3065367438
B76: 2024-01-26 | C76: 15:35:00 | D76: 12405 | E76: 1853 | F76: 13547 | G76: 1589 | H76: 1142 | I76: 335.25 | J76: 1.830938349 | K76: -4.325757576 | M76: 2024-01-26 | N76: 15:45:00 | O76: 10580 | P76: 1559 | Q76: 10032 | R76: 1087 | S76: -548 | T76: 335.15 | U76: 2.442669298 | V76: 1.161016949 | W76: 335.15 | Y76: =IF(H76>S76,"하락","상승") -> 하락 | Z76: 333.5 | AA76: =IF(AND(Y75="상승",Z76>W75),"성공",IF(AND(Y75="하락",Z76<W75),"성공",IF(AND(Y75="상승",Z76=W75),"동일가",IF(AND(Y75="하락",Z76=W75),"동일가","실패")))) -> 실패 | AB76: =S76/H76-1 -> -1.479859895
B77: 2024-01-29 | C77: 15:35:00 | D77: 10558 | E77: 1575 | F77: 14722 | G77: 2093 | H77: 4164 | I77: 339.3 | J77: 0.3304305356 | K77: 8.038610039 | M77: 2024-01-29 | N77: 15:45:00 | O77: 10461 | P77: 1290 | Q77: 13092 | R77: 1547 | S77: 2631 | T77: 339.25 | U77: 0.3535289608 | V77: 10.23735409 | W77: 339.25 | Y77: =IF(H77>S77,"하락","상승") -> 하락 | Z77: 336.25 | AA77: =IF(AND(Y76="상승",Z77>W76),"성공",IF(AND(Y76="하락",Z77<W76),"성공",IF(AND(Y76="상승",Z77=W76),"동일가",IF(AND(Y76="하락",Z77=W76),"동일가","실패")))) -> 실패 | AB77: =S77/H77-1 -> -0.3681556196
B78: 2024-01-30 | C78: 15:35:00 | D78: 16259 | E78: 2699 | F78: 12904 | G78: 1708 | H78: -3355 | I78: 338.45 | J78: 1.530952135 | K78: 3.385469223 | M78: 2024-01-30 | N78: 15:45:00 | O78: 13936 | P78: 1814 | Q78: 11352 | R78: 1029 | S78: -2584 | T78: 338.7 | U78: 3.349600291 | V78: 3.291719745 | W78: 338.7 | Y78: =IF(H78>S78,"하락","상승") -> 상승 | Z78: 340.55 | AA78: =IF(AND(Y77="상승",Z78>W77),"성공",IF(AND(Y77="하락",Z78<W77),"성공",IF(AND(Y77="상승",Z78=W77),"동일가",IF(AND(Y77="하락",Z78=W77),"동일가","실패")))) -> 실패 | AB78: =S78/H78-1 -> -0.2298062593
B79: 2024-01-31 | C79: 15:35:00 | D79: 13924 | E79: 2056 | F79: 12018 | G79: 1847 | H79: -1906 | I79: 336.6 | J79: -0.2656058094 | K79: 9.119617225 | M79: 2024-01-31 | N79: 15:45:00 | O79: 11431 | P79: 1485 | Q79: 12145 | R79: 1349 | S79: 714 | T79: 337 | U79: 1.305322062 | V79: -5.25 | W79: 337 | Y79: =IF(H79>S79,"하락","상승") -> 상승 | Z79: 335.15 | AA79: =IF(AND(Y78="상승",Z79>W78),"성공",IF(AND(Y78="하락",Z79<W78),"성공",IF(AND(Y78="상승",Z79=W78),"동일가",IF(AND(Y78="하락",Z79=W78),"동일가","실패")))) -> 실패 | AB79: =S79/H79-1 -> -1.374606506
B80: 2024-02-01 | C80: 15:35:00 | D80: 8275 | E80: 1652 | F80: 21310 | G80: 3493 | H80: 13035 | I80: 342.1 | J80: 1.091693071 | K80: 7.080391092 | M80: 2024-02-01 | N80: 15:45:00 | O80: 10134 | P80: 1589 | Q80: 16020 | R80: 1895 | S80: 5886 | T80: 342.15 | U80: 2.076229885 | V80: 19.23529412 | W80: 342.15 | Y80: =IF(H80>S80,"하락","상승") -> 하락 | Z80: 335.8 | AA80: =IF(AND(Y79="상승",Z80>W79),"성공",IF(AND(Y79="하락",Z80<W79),"성공",IF(AND(Y79="상승",Z80=W79),"동일가",IF(AND(Y79="하락",Z80=W79),"동일가","실패")))) -> 실패 | AB80: =S80/H80-1 -> -0.5484464902
B81: 2024-02-02 | C81: 15:35:00 | D81: 5803 | E81: 1006 | F81: 16843 | G81: 2825 | H81: 11040 | I81: 354.1 | J81: 0.1937342318 | K81: 6.069268829 | M81: 2024-02-02 | N81: 15:45:00 | O81: 10755 | P81: 1041 | Q81: 16761 | R81: 1949 | S81: 6006 | T81: 354.05 | U81: -1.731617337 | V81: 6.614537445 | W81: 354.05 | Y81: =IF(H81>S81,"하락","상승") -> 하락 | Z81: 344.6 | AA81: =IF(AND(Y80="상승",Z81>W80),"성공",IF(AND(Y80="하락",Z81<W80),"성공",IF(AND(Y80="상승",Z81=W80),"동일가",IF(AND(Y80="하락",Z81=W80),"동일가","실패")))) -> 실패 | AB81: =S81/H81-1 -> -0.4559782609
B82: 2024-02-05 | C82: 15:35:00 | D82: 12971 | E82: 2085 | F82: 15924 | G82: 2826 | H82: 2953 | I82: 349.3 | J82: -0.5862835846 | K82: 3.985155196 | M82: 2024-02-05 | N82: 15:45:00 | O82: 14780 | P82: 1387 | Q82: 13487 | R82: 1970 | S82: -1293 | T82: 349.25 | U82: -3.809899392 | V82: -2.217838765 | W82: 349.25 | Y82: =IF(H82>S82,"하락","상승") -> 하락 | Z82: 353.7 | AA82: =IF(AND(Y81="상승",Z82>W81),"성공",IF(AND(Y81="하락",Z82<W81),"성공",IF(AND(Y81="상승",Z82=W81),"동일가",IF(AND(Y81="하락",Z82=W81),"동일가","실패")))) -> 성공 | AB82: =S82/H82-1 -> -1.437859804
B83: 2024-02-06 | C83: 15:35:00 | D83: 13819 | E83: 2079 | F83: 13514 | G83: 2243 | H83: -305 | I83: 347.75 | J83: -0.6219790843 | K83: -1.859756098 | M83: 2024-02-06 | N83: 15:45:00 | O83: 13001 | P83: 1440 | Q83: 11686 | R83: 1395 | S83: -1315 | T83: 348.05 | U83: -0.6514112903 | V83: 29.22222222 | W83: 348.05 | Y83: =IF(H83>S83,"하락","상승") -> 하락 | Z83: 348.05 | AA83: =IF(AND(Y82="상승",Z83>W82),"성공",IF(AND(Y82="하락",Z83<W82),"성공",IF(AND(Y82="상승",Z83=W82),"동일가",IF(AND(Y82="하락",Z83=W82),"동일가","실패")))) -> 성공 | AB83: =S83/H83-1 -> 3.31147541
B84: 2024-02-07 | C84: 15:35:00 | D84: 9476 | E84: 1840 | F84: 18054 | G84: 2720 | H84: 8578 | I84: 352.55 | J84: 1.4875 | K84: 9.747727273 | M84: 2024-02-07 | N84: 15:45:00 | O84: 11445 | P84: 1427 | Q84: 15002 | R84: 1376 | S84: 3557 | T84: 352.7 | U84: 2.882293924 | V84: -69.74509804 | W84: 352.7 | Y84: =IF(H84>S84,"하락","상승") -> 하락 | Z84: 349.75 | AA84: =IF(AND(Y83="상승",Z84>W83),"성공",IF(AND(Y83="하락",Z84<W83),"성공",IF(AND(Y83="상승",Z84=W83),"동일가",IF(AND(Y83="하락",Z84=W83),"동일가","실패")))) -> 실패 | AB84: =S84/H84-1 -> -0.5853345768
B85: 2024-02-08 | C85: 15:35:00 | D85: 11809 | E85: 1843 | F85: 10389 | G85: 1450 | H85: -1420 | I85: 353.4 | J85: 0.7573397946 | K85: 3.613231552 | M85: 2024-02-08 | N85: 15:45:00 | O85: 11679 | P85: 1437 | Q85: 10798 | R85: 1096 | S85: -881 | T85: 353.4 | U85: 1.724841138 | V85: 2.583577713 | W85: 353.4 | Y85: =IF(H85>S85,"하락","상승") -> 상승 | Z85: 355.1 | AA85: =IF(AND(Y84="상승",Z85>W84),"성공",IF(AND(Y84="하락",Z85<W84),"성공",IF(AND(Y84="상승",Z85=W84),"동일가",IF(AND(Y84="하락",Z85=W84),"동일가","실패")))) -> 실패 | AB85: =S85/H85-1 -> -0.3795774648
B86: 2024-02-13 | C86: 15:35:00 | D86: 10070 | E86: 1986 | F86: 13745 | G86: 1912 | H86: 3675 | I86: 357.25 | J86: 2.118314077 | K86: -49.66216216 | M86: 2024-02-13 | N86: 15:45:00 | O86: 10332 | P86: 1695 | Q86: 9830 | R86: 1246 | S86: -502 | T86: 357.25 | U86: 1.793670365 | V86: 1.118040089 | W86: 357.25 | Y86: =IF(H86>S86,"하락","상승") -> 하락 | Z86: 355.55 | AA86: =IF(AND(Y85="상승",Z86>W85),"성공",IF(AND(Y85="하락",Z86<W85),"성공",IF(AND(Y85="상승",Z86=W85),"동일가",IF(AND(Y85="하락",Z86=W85),"동일가","실패")))) -> 성공 | AB86: =S86/H86-1 -> -1.136598639
B87: 2024-02-14 | C87: 15:35:00 | D87: 11116 | E87: 1753 | F87: 14571 | G87: 2402 | H87: 3455 | I87: 352.35 | J87: -0.2749346547 | K87: 5.32357473 | M87: 2024-02-14 | N87: 15:45:00 | O87: 11293 | P87: 1303 | Q87: 11292 | R87: 1389 | S87: -1 | T87: 352.5 | U87: -0.5373328537 | V87: -0.01162790698 | W87: 352.5 | Y87: =IF(H87>S87,"하락","상승") -> 하락 | Z87: 352 | AA87: =IF(AND(Y86="상승",Z87>W86),"성공",IF(AND(Y86="하락",Z87<W86),"성공",IF(AND(Y86="상승",Z87=W86),"동일가",IF(AND(Y86="하락",Z87=W86),"동일가","실패")))) -> 성공 | AB87: =S87/H87-1 -> -1.000289436
B88: 2024-02-15 | C88: 15:35:00 | D88: 13721 | E88: 2342 | F88: 8919 | G88: 1280 | H88: -4802 | I88: 352.2 | J88: 1.109300945 | K88: 4.52165725 | M88: 2024-02-15 | N88: 15:45:00 | O88: 11746 | P88: 1715 | Q88: 10240 | R88: 1046 | S88: -1506 | T88: 352.15 | U88: 2.94069536 | V88: 2.251121076 | W88: 352.15 | Y88: =IF(H88>S88,"하락","상승") -> 상승 | Z88: 355.65 | AA88: =IF(AND(Y87="상승",Z88>W87),"성공",IF(AND(Y87="하락",Z88<W87),"성공",IF(AND(Y87="상승",Z88=W87),"동일가",IF(AND(Y87="하락",Z88=W87),"동일가","실패")))) -> 실패 | AB88: =S88/H88-1 -> -0.6863806747
B89: 2024-02-16 | C89: 15:35:00 | D89: 10043 | E89: 1533 | F89: 18002 | G89: 2913 | H89: 7959 | I89: 355.5 | J89: -0.3713235022 | K89: 5.767391304 | M89: 2024-02-16 | N89: 15:45:00 | O89: 12635 | P89: 1418 | Q89: 11878 | R89: 1323 | S89: -757 | T89: 355.8 | U89: 0.06764288539 | V89: 7.968421053 | W89: 355.8 | Y89: =IF(H89>S89,"하락","상승") -> 하락 | Z89: 354.3 | AA89: =IF(AND(Y88="상승",Z89>W88),"성공",IF(AND(Y88="하락",Z89<W88),"성공",IF(AND(Y88="상승",Z89=W88),"동일가",IF(AND(Y88="하락",Z89=W88),"동일가","실패")))) -> 성공 | AB89: =S89/H89-1 -> -1.095112451
B90: 2024-02-19 | C90: 15:35:00 | D90: 5552 | E90: 1093 | F90: 17583 | G90: 2826 | H90: 12031 | I90: 361.1 | J90: 1.142270927 | K90: 6.942296595 | M90: 2024-02-19 | N90: 15:45:00 | O90: 11748 | P90: 1199 | Q90: 14992 | R90: 1607 | S90: 3244 | T90: 361.1 | U90: -0.4689803212 | V90: 7.950980392 | W90: 361.1 | Y90: =IF(H90>S90,"하락","상승") -> 하락 | Z90: 355.3 | AA90: =IF(AND(Y89="상승",Z90>W89),"성공",IF(AND(Y89="하락",Z90<W89),"성공",IF(AND(Y89="상승",Z90=W89),"동일가",IF(AND(Y89="하락",Z90=W89),"동일가","실패")))) -> 성공 | AB90: =S90/H90-1 -> -0.7303632283
B91: 2024-02-20 | C91: 15:35:00 | D91: 14097 | E91: 2112 | F91: 9301 | G91: 1621 | H91: -4796 | I91: 356.65 | J91: -0.9368997462 | K91: 9.767820774 | M91: 2024-02-20 | N91: 15:45:00 | O91: 15272 | P91: 1509 | Q91: 13234 | R91: 1304 | S91: -2038 | T91: 356.65 | U91: 0.02816333085 | V91: 9.941463415 | W91: 356.65 | Y91: =IF(H91>S91,"하락","상승") -> 상승 | Z91: 360.3 | AA91: =IF(AND(Y90="상승",Z91>W90),"성공",IF(AND(Y90="하락",Z91<W90),"성공",IF(AND(Y90="상승",Z91=W90),"동일가",IF(AND(Y90="하락",Z91=W90),"동일가","실패")))) -> 성공 | AB91: =S91/H91-1 -> -0.5750625521
B92: 2024-02-21 | C92: 15:35:00 | D92: 9357 | E92: 1928 | F92: 8330 | G92: 1529 | H92: -1027 | I92: 355.9 | J92: 0.5947894645 | K92: 2.573934837 | M92: 2024-02-21 | N92: 15:45:00 | O92: 9526 | P92: 1413 | Q92: 8726 | R92: 1089 | S92: -800 | T92: 355.95 | U92: 1.271171472 | V92: 2.469135802 | W92: 355.95 | Y92: =IF(H92>S92,"하락","상승") -> 상승 | Z92: 357.05 | AA92: =IF(AND(Y91="상승",Z92>W91),"성공",IF(AND(Y91="하락",Z92<W91),"성공",IF(AND(Y91="상승",Z92=W91),"동일가",IF(AND(Y91="하락",Z92=W91),"동일가","실패")))) -> 성공 | AB92: =S92/H92-1 -> -0.2210321324
B93: 2024-02-22 | C93: 15:35:00 | D93: 10513 | E93: 1842 | F93: 13434 | G93: 2260 | H93: 2921 | I93: 357.7 | J93: 0.2368645086 | K93: 6.988038278 | M93: 2024-02-22 | N93: 15:45:00 | O93: 11048 | P93: 1506 | Q93: 10146 | R93: 1350 | S93: -902 | T93: 357.9 | U93: 0.1795661797 | V93: 5.782051282 | W93: 357.9 | Y93: =IF(H93>S93,"하락","상승") -> 하락 | Z93: 360 | AA93: =IF(AND(Y92="상승",Z93>W92),"성공",IF(AND(Y92="하락",Z93<W92),"성공",IF(AND(Y92="상승",Z93=W92),"동일가",IF(AND(Y92="하락",Z93=W92),"동일가","실패")))) -> 성공 | AB93: =S93/H93-1 -> -1.308798357
B94: 2024-02-23 | C94: 15:35:00 | D94: 10153 | E94: 2006 | F94: 8203 | G94: 1284 | H94: -1950 | I94: 359.05 | J94: 1.327313232 | K94: 2.700831025 | M94: 2024-02-23 | N94: 15:45:00 | O94: 11670 | P94: 1726 | Q94: 10155 | R94: 1040 | S94: -1515 | T94: 359.05 | U94: 3.003125279 | V94: 2.20845481 | W94: 359.05 | Y94: =IF(H94>S94,"하락","상승") -> 상승 | Z94: 360.4 | AA94: =IF(AND(Y93="상승",Z94>W93),"성공",IF(AND(Y93="하락",Z94<W93),"성공",IF(AND(Y93="상승",Z94=W93),"동일가",IF(AND(Y93="하락",Z94=W93),"동일가","실패")))) -> 실패 | AB94: =S94/H94-1 -> -0.2230769231
B95: 2024-02-26 | C95: 15:35:00 | D95: 7018 | E95: 1464 | F95: 6646 | G95: 1275 | H95: -372 | I95: 355.4 | J95: 0.4188331726 | K95: 1.968253968 | M95: 2024-02-26 | N95: 15:45:00 | O95: 11804 | P95: 1500 | Q95: 11564 | R95: 1364 | S95: -240 | T95: 355.25 | U95: 0.6086725318 | V95: 1.764705882 | W95: 355.25 | Y95: =IF(H95>S95,"하락","상승") -> 상승 | Z95: 359.25 | AA95: =IF(AND(Y94="상승",Z95>W94),"성공",IF(AND(Y94="하락",Z95<W94),"성공",IF(AND(Y94="상승",Z95=W94),"동일가",IF(AND(Y94="하락",Z95=W94),"동일가","실패")))) -> 성공 | AB95: =S95/H95-1 -> -0.3548387097
B96: 2024-02-27 | C96: 15:35:00 | D96: 10749 | E96: 2285 | F96: 5634 | G96: 855 | H96: -5115 | I96: 352.65 | J96: 1.885316135 | K96: 3.576923077 | M96: 2024-02-27 | N96: 15:45:00 | O96: 11871 | P96: 2051 | Q96: 7760 | R96: 879 | S96: -4111 | T96: 352.6 | U96: 3.040305542 | V96: 3.507679181 | W96: 352.6 | Y96: =IF(H96>S96,"하락","상승") -> 상승 | Z96: 356.45 | AA96: =IF(AND(Y95="상승",Z96>W95),"성공",IF(AND(Y95="하락",Z96<W95),"성공",IF(AND(Y95="상승",Z96=W95),"동일가",IF(AND(Y95="하락",Z96=W95),"동일가","실패")))) -> 성공 | AB96: =S96/H96-1 -> -0.196285435
B97: 2024-02-28 | C97: 15:35:00 | D97: 5482 | E97: 1047 | F97: 9526 | G97: 2014 | H97: 4044 | I97: 357.2 | J97: -0.5060213652 | K97: 4.182006205 | M97: 2024-02-28 | N97: 15:45:00 | O97: 11057 | P97: 1241 | Q97: 13695 | R97: 1738 | S97: 2638 | T97: 357.2 | U97: -1.030003366 | V97: 5.307847082 | W97: 357.2 | Y97: =IF(H97>S97,"하락","상승") -> 하락 | Z97: 353.9 | AA97: =IF(AND(Y96="상승",Z97>W96),"성공",IF(AND(Y96="하락",Z97<W96),"성공",IF(AND(Y96="상승",Z97=W96),"동일가",IF(AND(Y96="하락",Z97=W96),"동일가","실패")))) -> 성공 | AB97: =S97/H97-1 -> -0.3476755687
B98: 2024-02-29 | C98: 15:35:00 | D98: 6274 | E98: 1205 | F98: 8584 | G98: 1615 | H98: 2310 | I98: 355.4 | J98: 0.1085312745 | K98: 5.634146341 | M98: 2024-02-29 | N98: 15:45:00 | O98: 12051 | P98: 1262 | Q98: 12769 | R98: 1211 | S98: 718 | T98: 355.75 | U98: 0.9950499973 | V98: -14.07843137 | W98: 355.75 | Y98: =IF(H98>S98,"하락","상승") -> 하락 | Z98: 355.6 | AA98: =IF(AND(Y97="상승",Z98>W97),"성공",IF(AND(Y97="하락",Z98<W97),"성공",IF(AND(Y97="상승",Z98=W97),"동일가",IF(AND(Y97="하락",Z98=W97),"동일가","실패")))) -> 성공 | AB98: =S98/H98-1 -> -0.6891774892
B99: 2024-03-04 | C99: 15:35:00 | D99: 6320 | E99: 1204 | F99: 10811 | G99: 1991 | H99: 4491 | I99: 361.25 | J99: 0.180765271 | K99: 5.706480305 | M99: 2024-03-04 | N99: 15:45:00 | O99: 12683 | P99: 1493 | Q99: 13403 | R99: 1401 | S99: 720 | T99: 361.4 | U99: 1.071761487 | V99: -7.826086957 | W99: 361.4 | Y99: =IF(H99>S99,"하락","상승") -> 하락 | Z99: 359.2 | AA99: =IF(AND(Y98="상승",Z99>W98),"성공",IF(AND(Y98="하락",Z99<W98),"성공",IF(AND(Y98="상승",Z99=W98),"동일가",IF(AND(Y98="하락",Z99=W98),"동일가","실패")))) -> 실패 | AB99: =S99/H99-1 -> -0.8396793587
B100: 2024-03-05 | C100: 15:35:00 | D100: 10511 | E100: 2142 | F100: 5315 | G100: 719 | H100: -5196 | I100: 357.5 | J100: 2.485115233 | K100: 3.651440618 | M100: 2024-03-05 | N100: 15:45:00 | O100: 12128 | P100: 1892 | Q100: 9883 | R100: 840 | S100: -2245 | T100: 357.65 | U100: 5.355328199 | V100: 2.134030418 | W100: 357.65 | Y100: =IF(H100>S100,"하락","상승") -> 상승 | Z100: 360.1 | AA100: =IF(AND(Y99="상승",Z100>W99),"성공",IF(AND(Y99="하락",Z100<W99),"성공",IF(AND(Y99="상승",Z100=W99),"동일가",IF(AND(Y99="하락",Z100=W99),"동일가","실패")))) -> 성공 | AB100: =S100/H100-1 -> -0.5679368745
B101: 2024-03-06 | C101: 15:35:00 | D101: 7174 | E101: 1266 | F101: 10925 | G101: 2001 | H101: 3751 | I101: 356.55 | J101: -0.2068965517 | K101: 5.103401361 | M101: 2024-03-06 | N101: 15:45:00 | O101: 8662 | P101: 1142 | Q101: 11128 | R101: 1669 | S101: 2466 | T101: 356.6 | U101: -0.9174731558 | V101: 4.679316888 | W101: 356.6 | Y101: =IF(H101>S101,"하락","상승") -> 하락 | Z101: 354.6 | AA101: =IF(AND(Y100="상승",Z101>W100),"성공",IF(AND(Y100="하락",Z101<W100),"성공",IF(AND(Y100="상승",Z101=W100),"동일가",IF(AND(Y100="하락",Z101=W100),"동일가","실패")))) -> 실패 | AB101: =S101/H101-1 -> -0.3425753132
B102: 2024-03-07 | C102: 15:35:00 | D102: 11047 | E102: 1750 | F102: 9874 | G102: 1529 | H102: -1173 | I102: 357.05 | J102: 0.1452441372 | K102: 5.307692308 | M102: 2024-03-07 | N102: 15:45:00 | O102: 10020 | P102: 1490 | Q102: 8966 | R102: 1243 | S102: -1054 | T102: 357.1 | U102: 0.488361671 | V102: 4.267206478 | W102: 357.1 | Y102: =IF(H102>S102,"하락","상승") -> 상승 | Z102: 358.3 | AA102: =IF(AND(Y101="상승",Z102>W101),"성공",IF(AND(Y101="하락",Z102<W101),"성공",IF(AND(Y101="상승",Z102=W101),"동일가",IF(AND(Y101="하락",Z102=W101),"동일가","실패")))) -> 실패 | AB102: =S102/H102-1 -> -0.1014492754
B103: 2024-03-08 | C103: 15:35:00 | D103: 9198 | E103: 1374 | F103: 11423 | G103: 1914 | H103: 2225 | I103: 362.15 | J103: -0.7261935725 | K103: 4.12037037 | M103: 2024-03-08 | N103: 15:45:00 | O103: 12006 | P103: 1420 | Q103: 13344 | R103: 1669 | S103: 1338 | T103: 362.15 | U103: -0.4597228669 | V103: 5.373493976 | W103: 362.15 | Y103: =IF(H103>S103,"하락","상승") -> 하락 | Z103: 360.55 | AA103: =IF(AND(Y102="상승",Z103>W102),"성공",IF(AND(Y102="하락",Z103<W102),"성공",IF(AND(Y102="상승",Z103=W102),"동일가",IF(AND(Y102="하락",Z103=W102),"동일가","실패")))) -> 성공 | AB103: =S103/H103-1 -> -0.3986516854
B104: 2024-03-11 | C104: 15:35:00 | D104: 12359 | E104: 1687 | F104: 9621 | G104: 1563 | H104: -2738 | I104: 358.95 | J104: -1.170552276 | K104: 22.08064516 | M104: 2024-03-11 | N104: 15:45:00 | O104: 10678 | P104: 1102 | Q104: 10287 | R104: 1207 | S104: -391 | T104: 359.05 | U104: -1.166871411 | V104: -3.723809524 | W104: 359.05 | Y104: =IF(H104>S104,"하락","상승") -> 상승 | Z104: 359.9 | AA104: =IF(AND(Y103="상승",Z104>W103),"성공",IF(AND(Y103="하락",Z104<W103),"성공",IF(AND(Y103="상승",Z104=W103),"동일가",IF(AND(Y103="하락",Z104=W103),"동일가","실패")))) -> 성공 | AB104: =S104/H104-1 -> -0.8571950329
B105: 2024-03-12 | C105: 15:35:00 | D105: 8291 | E105: 1127 | F105: 16128 | G105: 2611 | H105: 7837 | I105: 361.65 | J105: -1.179755502 | K105: 5.280997305 | M105: 2024-03-12 | N105: 15:45:00 | O105: 8485 | P105: 918 | Q105: 12889 | R105: 1523 | S105: 4404 | T105: 361.7 | U105: -0.7800172232 | V105: 7.279338843 | W105: 361.7 | Y105: =IF(H105>S105,"하락","상승") -> 하락 | Z105: 360 | AA105: =IF(AND(Y104="상승",Z105>W104),"성공",IF(AND(Y104="하락",Z105<W104),"성공",IF(AND(Y104="상승",Z105=W104),"동일가",IF(AND(Y104="하락",Z105=W104),"동일가","실패")))) -> 성공 | AB105: =S105/H105-1 -> -0.4380502743
B106: 2024-03-13 | C106: 15:35:00 | D106: 11035 | E106: 1729 | F106: 11932 | G106: 1896 | H106: 897 | I106: 363.25 | J106: -0.08905296347 | K106: 5.371257485 | M106: 2024-03-13 | N106: 15:45:00 | O106: 10088 | P106: 1391 | Q106: 9338 | R106: 1092 | S106: -750 | T106: 363.55 | U106: 1.298945603 | V106: 2.508361204 | W106: 363.55 | Y106: =IF(H106>S106,"하락","상승") -> 하락 | Z106: 363.4 | AA106: =IF(AND(Y105="상승",Z106>W105),"성공",IF(AND(Y105="하락",Z106<W105),"성공",IF(AND(Y105="상승",Z106=W105),"동일가",IF(AND(Y105="하락",Z106=W105),"동일가","실패")))) -> 실패 | AB106: =S106/H106-1 -> -1.836120401
B107: 2024-03-14 | C107: 15:35:00 | D107: 3056 | E107: 620 | F107: 6187 | G107: 1031 | H107: 3131 | I107: 366.35 | J107: 1.071937674 | K107: 7.618004866 | M107: 2024-03-14 | N107: 15:45:00 | O107: 3056 | P107: 620 | Q107: 6187 | R107: 1031 | S107: 3131 | T107: 366.35 | U107: 1.071937674 | V107: 7.618004866 | W107: 366.35 | Y107: =IF(H107>S107,"하락","상승") -> 상승 | Z107: 363.55 | AA107: =IF(AND(Y106="상승",Z107>W106),"성공",IF(AND(Y106="하락",Z107<W106),"성공",IF(AND(Y106="상승",Z107=W106),"동일가",IF(AND(Y106="하락",Z107=W106),"동일가","실패")))) -> 동일가 | AB107: =S107/H107-1 -> 0
B108: 2024-03-15 | C108: 15:35:00 | D108: 13346 | E108: 2452 | F108: 5746 | G108: 825 | H108: -7600 | I108: 360.95 | J108: 1.521944733 | K108: 4.67117394 | M108: 2024-03-15 | N108: 15:45:00 | O108: 18826 | P108: 2147 | Q108: 13439 | R108: 987 | S108: -5387 | T108: 361.1 | U108: 4.8474939 | V108: 4.643965517 | W108: 361.1 | Y108: =IF(H108>S108,"하락","상승") -> 상승 | Z108: 365.7 | AA108: =IF(AND(Y107="상승",Z108>W107),"성공",IF(AND(Y107="하락",Z108<W107),"성공",IF(AND(Y107="상승",Z108=W107),"동일가",IF(AND(Y107="하락",Z108=W107),"동일가","실패")))) -> 실패 | AB108: =S108/H108-1 -> -0.2911842105
B109: 2024-03-18 | C109: 15:35:00 | D109: 9015 | E109: 1452 | F109: 14136 | G109: 2520 | H109: 5121 | I109: 362.9 | J109: -0.5991538764 | K109: 4.79494382 | M109: 2024-03-18 | N109: 15:45:00 | O109: 14162 | P109: 1371 | Q109: 15523 | R109: 1655 | S109: 1361 | T109: 362.95 | U109: -0.950230167 | V109: 4.792253521 | W109: 362.95 | Y109: =IF(H109>S109,"하락","상승") -> 하락 | Z109: 361.1 | AA109: =IF(AND(Y108="상승",Z109>W108),"성공",IF(AND(Y108="하락",Z109<W108),"성공",IF(AND(Y108="상승",Z109=W108),"동일가",IF(AND(Y108="하락",Z109=W108),"동일가","실패")))) -> 동일가 | AB109: =S109/H109-1 -> -0.7342315954
B110: 2024-03-19 | C110: 15:35:00 | D110: 12791 | E110: 2239 | F110: 9247 | G110: 1724 | H110: -3544 | I110: 358.95 | J110: -0.3491291273 | K110: 6.881553398 | M110: 2024-03-19 | N110: 15:45:00 | O110: 13413 | P110: 1694 | Q110: 11339 | R110: 1449 | S110: -2074 | T110: 358.95 | U110: -0.09254886528 | V110: 8.465306122 | W110: 358.95 | Y110: =IF(H110>S110,"하락","상승") -> 상승 | Z110: 361 | AA110: =IF(AND(Y109="상승",Z110>W109),"성공",IF(AND(Y109="하락",Z110<W109),"성공",IF(AND(Y109="상승",Z110=W109),"동일가",IF(AND(Y109="하락",Z110=W109),"동일가","실패")))) -> 성공 | AB110: =S110/H110-1 -> -0.414785553
B111: 2024-03-20 | C111: 15:35:00 | D111: 8701 | E111: 1560 | F111: 18809 | G111: 3437 | H111: 10108 | I111: 364.95 | J111: -0.1050590109 | K111: 5.385189132 | M111: 2024-03-20 | N111: 15:45:00 | O111: 11751 | P111: 1459 | Q111: 15896 | R111: 1968 | S111: 4145 | T111: 365.05 | U111: 0.02308909655 | V111: 8.143418468 | W111: 365.05 | Y111: =IF(H111>S111,"하락","상승") -> 하락 | Z111: 361 | AA111: =IF(AND(Y110="상승",Z111>W110),"성공",IF(AND(Y110="하락",Z111<W110),"성공",IF(AND(Y110="상승",Z111=W110),"동일가",IF(AND(Y110="하락",Z111=W110),"동일가","실패")))) -> 성공 | AB111: =S111/H111-1 -> -0.5899287693
B112: 2024-03-21 | C112: 15:35:00 | D112: 8818 | E112: 1231 | F112: 27511 | G112: 4035 | H112: 18693 | I112: 375.25 | J112: -0.345190187 | K112: 6.666547789 | M112: 2024-03-21 | N112: 15:45:00 | O112: 14360 | P112: 1231 | Q112: 21833 | R112: 1874 | S112: 1874 | T112: 375.45 | U112: 0.01184839876 | V112: 11.69984448 | W112: 375.45 | Y112: =IF(H112>S112,"하락","상승") -> 하락 | Z112: 371.7 | AA112: =IF(AND(Y111="상승",Z112>W111),"성공",IF(AND(Y111="하락",Z112<W111),"성공",IF(AND(Y111="상승",Z112=W111),"동일가",IF(AND(Y111="하락",Z112=W111),"동일가","실패")))) -> 실패 | AB112: =S112/H112-1 -> -0.899748569
B113: 2024-03-22 | C113: 15:35:00 | D113: 11667 | E113: 1995 | F113: 12267 | G113: 1787 | H113: 600 | I113: 373.45 | J113: 1.016457203 | K113: -2.884615385 | M113: 2024-03-22 | N113: 15:45:00 | O113: 15341 | P113: 1401 | Q113: 14657 | R113: 1324 | S113: -684 | T113: 373.4 | U113: 0.120206003 | V113: 8.883116883 | W113: 373.4 | Y113: =IF(H113>S113,"하락","상승") -> 하락 | Z113: 373.95 | AA113: =IF(AND(Y112="상승",Z113>W112),"성공",IF(AND(Y112="하락",Z113<W112),"성공",IF(AND(Y112="상승",Z113=W112),"동일가",IF(AND(Y112="하락",Z113=W112),"동일가","실패")))) -> 성공 | AB113: =S113/H113-1 -> -2.14
B114: 2024-03-25 | C114: 15:35:00 | D114: 13192 | E114: 2369 | F114: 12090 | G114: 1758 | H114: -1102 | I114: 372.45 | J114: 1.308538762 | K114: 1.803600655 | M114: 2024-03-25 | N114: 15:45:00 | O114: 12096 | P114: 1583 | Q114: 11859 | R114: 1246 | S114: -237 | T114: 372.6 | U114: 1.876468882 | V114: 0.703264095 | W114: 372.6 | Y114: =IF(H114>S114,"하락","상승") -> 상승 | Z114: 373.8 | AA114: =IF(AND(Y113="상승",Z114>W113),"성공",IF(AND(Y113="하락",Z114<W113),"성공",IF(AND(Y113="상승",Z114=W113),"동일가",IF(AND(Y113="하락",Z114=W113),"동일가","실패")))) -> 실패 | AB114: =S114/H114-1 -> -0.7849364791
B115: 2024-03-26 | C115: 15:35:00 | D115: 10114 | E115: 1964 | F115: 14094 | G115: 2260 | H115: 3980 | I115: 376.2 | J115: 1.086588685 | K115: 13.44594595 | M115: 2024-03-26 | N115: 15:45:00 | O115: 11643 | P115: 1453 | Q115: 13108 | R115: 1465 | S115: 1465 | T115: 376 | U115: 0.9343638794 | V115: 122.0833333 | W115: 376 | Y115: =IF(H115>S115,"하락","상승") -> 하락 | Z115: 375.05 | AA115: =IF(AND(Y114="상승",Z115>W114),"성공",IF(AND(Y114="하락",Z115<W114),"성공",IF(AND(Y114="상승",Z115=W114),"동일가",IF(AND(Y114="하락",Z115=W114),"동일가","실패")))) -> 성공 | AB115: =S115/H115-1 -> -0.6319095477
B116: 2024-03-27 | C116: 15:35:00 | D116: 10207 | E116: 1822 | F116: 17113 | G116: 2756 | H116: 6906 | I116: 376.25 | J116: 0.6072757731 | K116: 7.394004283 | M116: 2024-03-27 | N116: 15:45:00 | O116: 11766 | P116: 1441 | Q116: 13320 | R116: 1551 | S116: 1554 | T116: 376.3 | U116: 0.4228446558 | V116: 14.12727273 | W116: 376.3 | Y116: =IF(H116>S116,"하락","상승") -> 하락 | Z116: 375.3 | AA116: =IF(AND(Y115="상승",Z116>W115),"성공",IF(AND(Y115="하락",Z116<W115),"성공",IF(AND(Y115="상승",Z116=W115),"동일가",IF(AND(Y115="하락",Z116=W115),"동일가","실패")))) -> 성공 | AB116: =S116/H116-1 -> -0.7749782798
B117: 2024-03-28 | C117: 15:35:00 | D117: 9465 | E117: 1661 | F117: 9153 | G117: 1601 | H117: -312 | I117: 375.65 | J117: 0.01867736939 | K117: 5.2 | M117: 2024-03-28 | N117: 15:45:00 | O117: 9729 | P117: 1343 | Q117: 10350 | R117: 1412 | S117: 621 | T117: 375.7 | U117: 0.08579899131 | V117: 9 | W117: 375.7 | Y117: =IF(H117>S117,"하락","상승") -> 상승 | Z117: 376.75 | AA117: =IF(AND(Y116="상승",Z117>W116),"성공",IF(AND(Y116="하락",Z117<W116),"성공",IF(AND(Y116="상승",Z117=W116),"동일가",IF(AND(Y116="하락",Z117=W116),"동일가","실패")))) -> 실패 | AB117: =S117/H117-1 -> -2.990384615
B118: 2024-03-29 | C118: 15:35:00 | D118: 9237 | E118: 1596 | F118: 11545 | G118: 1862 | H118: 2308 | I118: 377.35 | J118: 0.4127282492 | K118: 8.676691729 | M118: 2024-03-29 | N118: 15:45:00 | O118: 9502 | P118: 1250 | Q118: 10350 | R118: 1299 | S118: 848 | T118: 376.95 | U118: 0.3660674365 | V118: 17.30612245 | W118: 376.95 | Y118: =IF(H118>S118,"하락","상승") -> 하락 | Z118: 376.95 | AA118: =IF(AND(Y117="상승",Z118>W117),"성공",IF(AND(Y117="하락",Z118<W117),"성공",IF(AND(Y117="상승",Z118=W117),"동일가",IF(AND(Y117="하락",Z118=W117),"동일가","실패")))) -> 성공 | AB118: =S118/H118-1 -> -0.6325823224
B119: 2024-04-01 | C119: 15:35:00 | D119: 13924 | E119: 2619 | F119: 11927 | G119: 1608 | H119: -1997 | I119: 377.05 | J119: 2.100755529 | K119: 1.975272008 | M119: 2024-04-01 | N119: 15:45:00 | O119: 10738 | P119: 1727 | Q119: 8769 | R119: 945 | S119: -1969 | T119: 377 | U119: 3.061646492 | V119: 2.517902813 | W119: 377 | Y119: =IF(H119>S119,"하락","상승") -> 상승 | Z119: 379.95 | AA119: =IF(AND(Y118="상승",Z119>W118),"성공",IF(AND(Y118="하락",Z119<W118),"성공",IF(AND(Y118="상승",Z119=W118),"동일가",IF(AND(Y118="하락",Z119=W118),"동일가","실패")))) -> 실패 | AB119: =S119/H119-1 -> -0.01402103155
B120: 2024-04-02 | C120: 15:35:00 | D120: 9727 | E120: 1881 | F120: 14658 | G120: 2443 | H120: 4931 | I120: 378.5 | J120: 0.8288144604 | K120: 8.774021352 | M120: 2024-04-02 | N120: 15:45:00 | O120: 10094 | P120: 1389 | Q120: 12177 | R120: 1549 | S120: 2083 | T120: 378.55 | U120: 0.5941021426 | V120: 13.01875 | W120: 378.55 | Y120: =IF(H120>S120,"하락","상승") -> 하락 | Z120: 375.4 | AA120: =IF(AND(Y119="상승",Z120>W119),"성공",IF(AND(Y119="하락",Z120<W119),"성공",IF(AND(Y119="상승",Z120=W119),"동일가",IF(AND(Y119="하락",Z120=W119),"동일가","실패")))) -> 실패 | AB120: =S120/H120-1 -> -0.5775704725
B121: 2024-04-03 | C121: 15:35:00 | D121: 16312 | E121: 3053 | F121: 9128 | G121: 1376 | H121: -7184 | I121: 372.6 | J121: 1.290779561 | K121: 4.283840191 | M121: 2024-04-03 | N121: 15:45:00 | O121: 17526 | P121: 2071 | Q121: 13691 | R121: 1144 | S121: -3835 | T121: 373.05 | U121: 3.505078878 | V121: 4.137001079 | W121: 373.05 | Y121: =IF(H121>S121,"하락","상승") -> 상승 | Z121: 376.3 | AA121: =IF(AND(Y120="상승",Z121>W120),"성공",IF(AND(Y120="하락",Z121<W120),"성공",IF(AND(Y120="상승",Z121=W120),"동일가",IF(AND(Y120="하락",Z121=W120),"동일가","실패")))) -> 성공 | AB121: =S121/H121-1 -> -0.466174833
B122: 2024-04-04 | C122: 15:35:00 | D122: 8069 | E122: 1238 | F122: 12851 | G122: 2435 | H122: 4782 | I122: 378.35 | J122: -1.240152528 | K122: 3.994987469 | M122: 2024-04-04 | N122: 15:45:00 | O122: 12335 | P122: 1076 | Q122: 14467 | R122: 1496 | S122: 2132 | T122: 378.25 | U122: -1.793300101 | V122: 5.076190476 | W122: 378.25 | Y122: =IF(H122>S122,"하락","상승") -> 하락 | Z122: 376.25 | AA122: =IF(AND(Y121="상승",Z122>W121),"성공",IF(AND(Y121="하락",Z122<W121),"성공",IF(AND(Y121="상승",Z122=W121),"동일가",IF(AND(Y121="하락",Z122=W121),"동일가","실패")))) -> 성공 | AB122: =S122/H122-1 -> -0.5541614387
B123: 2024-04-05 | C123: 15:35:00 | D123: 13371 | E123: 2756 | F123: 11809 | G123: 2221 | H123: -1562 | I123: 373.75 | J123: 0.4653778192 | K123: 2.919626168 | M123: 2024-04-05 | N123: 15:45:00 | O123: 14772 | P123: 1567 | Q123: 15422 | R123: 1658 | S123: 650 | T123: 373.75 | U123: -0.1253622859 | V123: 7.142857143 | W123: 373.75 | Y123: =IF(H123>S123,"하락","상승") -> 상승 | Z123: 375 | AA123: =IF(AND(Y122="상승",Z123>W122),"성공",IF(AND(Y122="하락",Z123<W122),"성공",IF(AND(Y122="상승",Z123=W122),"동일가",IF(AND(Y122="하락",Z123=W122),"동일가","실패")))) -> 성공 | AB123: =S123/H123-1 -> -1.416133163
B124: 2024-04-08 | C124: 15:35:00 | D124: 12349 | E124: 2215 | F124: 10719 | G124: 1923 | H124: -1630 | I124: 375.25 | J124: -0.001066336107 | K124: 5.582191781 | M124: 2024-04-08 | N124: 15:45:00 | O124: 10951 | P124: 1512 | Q124: 10577 | R124: 1412 | S124: -374 | T124: 375.2 | U124: 0.2480683334 | V124: 3.74 | W124: 375.2 | Y124: =IF(H124>S124,"하락","상승") -> 상승 | Z124: 376 | AA124: =IF(AND(Y123="상승",Z124>W123),"성공",IF(AND(Y123="하락",Z124<W123),"성공",IF(AND(Y123="상승",Z124=W123),"동일가",IF(AND(Y123="하락",Z124=W123),"동일가","실패")))) -> 성공 | AB124: =S124/H124-1 -> -0.7705521472
B125: 2024-04-09 | C125: 15:35:00 | D125: 15195 | E125: 2943 | F125: 6811 | G125: 1238 | H125: -8384 | I125: 373.05 | J125: 0.3385166302 | K125: 4.917302053 | M125: 2024-04-09 | N125: 15:45:00 | O125: 13130 | P125: 2038 | Q125: 8602 | R125: 1037 | S125: -4528 | T125: 372.8 | U125: 1.852491192 | V125: 4.523476523 | W125: 372.8 | Y125: =IF(H125>S125,"하락","상승") -> 상승 | Z125: 376.95 | AA125: =IF(AND(Y124="상승",Z125>W124),"성공",IF(AND(Y124="하락",Z125<W124),"성공",IF(AND(Y124="상승",Z125=W124),"동일가",IF(AND(Y124="하락",Z125=W124),"동일가","실패")))) -> 성공 | AB125: =S125/H125-1 -> -0.4599236641
B126: 2024-04-11 | C126: 15:35:00 | D126: 5840 | E126: 1223 | F126: 15982 | G126: 3351 | H126: 10142 | I126: 372.85 | J126: -0.005820500489 | K126: 4.765977444 | M126: 2024-04-11 | N126: 15:45:00 | O126: 7872 | P126: 925 | Q126: 12336 | R126: 1959 | S126: 4464 | T126: 372.8 | U126: -2.213179918 | V126: 4.3172147 | W126: 372.8 | Y126: =IF(H126>S126,"하락","상승") -> 하락 | Z126: 365.85 | AA126: =IF(AND(Y125="상승",Z126>W125),"성공",IF(AND(Y125="하락",Z126<W125),"성공",IF(AND(Y125="상승",Z126=W125),"동일가",IF(AND(Y125="하락",Z126=W125),"동일가","실패")))) -> 실패 | AB126: =S126/H126-1 -> -0.5598501282
B127: 2024-04-12 | C127: 15:35:00 | D127: 14680 | E127: 2549 | F127: 9540 | G127: 1781 | H127: -5140 | I127: 369.3 | J127: -0.4025799551 | K127: 6.692708333 | M127: 2024-04-12 | N127: 15:45:00 | O127: 13301 | P127: 1724 | Q127: 9760 | R127: 1386 | S127: -3541 | T127: 369.35 | U127: -0.6733501739 | V127: 10.47633136 | W127: 369.35 | Y127: =IF(H127>S127,"하락","상승") -> 상승 | Z127: 373.65 | AA127: =IF(AND(Y126="상승",Z127>W126),"성공",IF(AND(Y126="하락",Z127<W126),"성공",IF(AND(Y126="상승",Z127=W126),"동일가",IF(AND(Y126="하락",Z127=W126),"동일가","실패")))) -> 실패 | AB127: =S127/H127-1 -> -0.3110894942
B128: 2024-04-15 | C128: 15:35:00 | D128: 8909 | E128: 1439 | F128: 14686 | G128: 2543 | H128: 5777 | I128: 367.05 | J128: -0.4160361176 | K128: 5.232789855 | M128: 2024-04-15 | N128: 15:45:00 | O128: 10438 | P128: 1105 | Q128: 11899 | R128: 1726 | S128: 1461 | T128: 367.2 | U128: -2.552179339 | V128: 2.352657005 | W128: 367.2 | Y128: =IF(H128>S128,"하락","상승") -> 하락 | Z128: 366.5 | AA128: =IF(AND(Y127="상승",Z128>W127),"성공",IF(AND(Y127="하락",Z128<W127),"성공",IF(AND(Y127="상승",Z128=W127),"동일가",IF(AND(Y127="하락",Z128=W127),"동일가","실패")))) -> 실패 | AB128: =S128/H128-1 -> -0.7471005712
B129: 2024-04-16 | C129: 15:35:00 | D129: 16239 | E129: 3066 | F129: 11684 | G129: 1533 | H129: -4555 | I129: 358.15 | J129: 2.325179387 | K129: 2.971298108 | M129: 2024-04-16 | N129: 15:45:00 | O129: 14968 | P129: 2182 | Q129: 13197 | R129: 1456 | S129: -1771 | T129: 358.15 | U129: 2.20411194 | V129: 2.439393939 | W129: 358.15 | Y129: =IF(H129>S129,"하락","상승") -> 상승 | Z129: 362.95 | AA129: =IF(AND(Y128="상승",Z129>W128),"성공",IF(AND(Y128="하락",Z129<W128),"성공",IF(AND(Y128="상승",Z129=W128),"동일가",IF(AND(Y128="하락",Z129=W128),"동일가","실패")))) -> 성공 | AB129: =S129/H129-1 -> -0.6111964874
B130: 2024-04-17 | C130: 15:35:00 | D130: 15503 | E130: 2671 | F130: 7185 | G130: 1058 | H130: -8318 | I130: 354.7 | J130: 0.9869221258 | K130: 5.156850589 | M130: 2024-04-17 | N130: 15:45:00 | O130: 13762 | P130: 1859 | Q130: 9787 | R130: 899 | S130: -3975 | T130: 354.7 | U130: 3.483635813 | V130: 4.140625 | W130: 354.7 | Y130: =IF(H130>S130,"하락","상승") -> 상승 | Z130: 360 | AA130: =IF(AND(Y129="상승",Z130>W129),"성공",IF(AND(Y129="하락",Z130<W129),"성공",IF(AND(Y129="상승",Z130=W129),"동일가",IF(AND(Y129="하락",Z130=W129),"동일가","실패")))) -> 성공 | AB130: =S130/H130-1 -> -0.5221207021
B131: 2024-04-18 | C131: 15:35:00 | D131: 8938 | E131: 1410 | F131: 19716 | G131: 3680 | H131: 10778 | I131: 360.45 | J131: -0.9813983965 | K131: 4.748017621 | M131: 2024-04-18 | N131: 15:45:00 | O131: 10451 | P131: 1095 | Q131: 18104 | R131: 2531 | S131: 7653 | T131: 360.35 | U131: -2.391388247 | V131: 5.329387187 | W131: 360.35 | Y131: =IF(H131>S131,"하락","상승") -> 하락 | Z131: 353.5 | AA131: =IF(AND(Y130="상승",Z131>W130),"성공",IF(AND(Y130="하락",Z131<W130),"성공",IF(AND(Y130="상승",Z131=W130),"동일가",IF(AND(Y130="하락",Z131=W130),"동일가","실패")))) -> 실패 | AB131: =S131/H131-1 -> -0.2899424754
B132: 2024-04-19 | C132: 15:35:00 | D132: 13737 | E132: 2192 | F132: 10415 | G132: 2052 | H132: -3322 | I132: 354.15 | J132: -1.1913435 | K132: 23.72857143 | M132: 2024-04-19 | N132: 15:45:00 | O132: 14489 | P132: 1409 | Q132: 12576 | R132: 1596 | S132: -1913 | T132: 354.05 | U132: -2.403480312 | V132: -10.22994652 | W132: 354.05 | Y132: =IF(H132>S132,"하락","상승") -> 상승 | Z132: 357 | AA132: =IF(AND(Y131="상승",Z132>W131),"성공",IF(AND(Y131="하락",Z132<W131),"성공",IF(AND(Y131="상승",Z132=W131),"동일가",IF(AND(Y131="하락",Z132=W131),"동일가","실패")))) -> 성공 | AB132: =S132/H132-1 -> -0.4241420831
B133: 2024-04-22 | C133: 15:35:00 | D133: 9366 | E133: 1503 | F133: 14507 | G133: 2457 | H133: 5141 | I133: 358.7 | J133: -0.3271820218 | K133: 5.388888889 | M133: 2024-04-22 | N133: 15:45:00 | O133: 16026 | P133: 1414 | Q133: 15613 | R133: 1552 | S133: -413 | T133: 358.8 | U133: -1.273882129 | V133: -2.992753623 | W133: 358.8 | Y133: =IF(H133>S133,"하락","상승") -> 하락 | Z133: 355.15 | AA133: =IF(AND(Y132="상승",Z133>W132),"성공",IF(AND(Y132="하락",Z133<W132),"성공",IF(AND(Y132="상승",Z133=W132),"동일가",IF(AND(Y132="하락",Z133=W132),"동일가","실패")))) -> 성공 | AB133: =S133/H133-1 -> -1.080334565
B134: 2024-04-23 | C134: 15:35:00 | D134: 13384 | E134: 2164 | F134: 10423 | G134: 1654 | H134: -2961 | I134: 358.25 | J134: 0.1168499822 | K134: 5.805882353 | M134: 2024-04-23 | N134: 15:45:00 | O134: 11267 | P134: 1540 | Q134: 11123 | R134: 1255 | S134: -144 | T134: 358.5 | U134: 1.546714441 | V134: 0.5052631579 | W134: 358.5 | Y134: =IF(H134>S134,"하락","상승") -> 상승 | Z134: 359.1 | AA134: =IF(AND(Y133="상승",Z134>W133),"성공",IF(AND(Y133="하락",Z134<W133),"성공",IF(AND(Y133="상승",Z134=W133),"동일가",IF(AND(Y133="하락",Z134=W133),"동일가","실패")))) -> 실패 | AB134: =S134/H134-1 -> -0.9513677812
B135: 2024-04-24 | C135: 15:35:00 | D135: 10736 | E135: 1839 | F135: 14383 | G135: 2328 | H135: 3647 | I135: 364.6 | J135: 0.3403091943 | K135: 7.45807771 | M135: 2024-04-24 | N135: 15:45:00 | O135: 13070 | P135: 1679 | Q135: 13119 | R135: 1347 | S135: 49 | T135: 364.55 | U135: 1.955025462 | V135: -0.1475903614 | W135: 364.55 | Y135: =IF(H135>S135,"하락","상승") -> 하락 | Z135: 363.3 | AA135: =IF(AND(Y134="상승",Z135>W134),"성공",IF(AND(Y134="하락",Z135<W134),"성공",IF(AND(Y134="상승",Z135=W134),"동일가",IF(AND(Y134="하락",Z135=W134),"동일가","실패")))) -> 성공 | AB135: =S135/H135-1 -> -0.9865642994
B136: 2024-04-25 | C136: 15:35:00 | D136: 15300 | E136: 2803 | F136: 8898 | G136: 1424 | H136: -6402 | I136: 358.4 | J136: 0.7901581171 | K136: 4.642494561 | M136: 2024-04-25 | N136: 15:45:00 | O136: 12407 | P136: 1716 | Q136: 9891 | R136: 1119 | S136: -2516 | T136: 358.6 | U136: 1.608955611 | V136: 4.21440536 | W136: 358.6 | Y136: =IF(H136>S136,"하락","상승") -> 상승 | Z136: 360 | AA136: =IF(AND(Y135="상승",Z136>W135),"성공",IF(AND(Y135="하락",Z136<W135),"성공",IF(AND(Y135="상승",Z136=W135),"동일가",IF(AND(Y135="하락",Z136=W135),"동일가","실패")))) -> 성공 | AB136: =S136/H136-1 -> -0.6069978132
B137: 2024-04-26 | C137: 15:35:00 | D137: 9839 | E137: 1779 | F137: 10012 | G137: 1719 | H137: 173 | I137: 361.85 | J137: 0.2936812748 | K137: -2.883333333 | M137: 2024-04-26 | N137: 15:45:00 | O137: 10263 | P137: 1490 | Q137: 10353 | R137: 1201 | S137: 90 | T137: 361.9 | U137: 1.73239694 | V137: -0.3114186851 | W137: 361.9 | Y137: =IF(H137>S137,"하락","상승") -> 하락 | Z137: 362 | AA137: =IF(AND(Y136="상승",Z137>W136),"성공",IF(AND(Y136="하락",Z137<W136),"성공",IF(AND(Y136="상승",Z137=W136),"동일가",IF(AND(Y136="하락",Z137=W136),"동일가","실패")))) -> 성공 | AB137: =S137/H137-1 -> -0.4797687861
B138: 2024-04-29 | C138: 15:35:00 | D138: 10168 | E138: 1770 | F138: 13763 | G138: 2354 | H138: 3595 | I138: 365.45 | J138: 0.1020112418 | K138: 6.155821918 | M138: 2024-04-29 | N138: 15:45:00 | O138: 9328 | P138: 1440 | Q138: 10198 | R138: 1370 | S138: 870 | T138: 365.65 | U138: 0.9660178427 | V138: -12.42857143 | W138: 365.65 | Y138: =IF(H138>S138,"하락","상승") -> 하락 | Z138: 364.35 | AA138: =IF(AND(Y137="상승",Z138>W137),"성공",IF(AND(Y137="하락",Z138<W137),"성공",IF(AND(Y137="상승",Z138=W137),"동일가",IF(AND(Y137="하락",Z138=W137),"동일가","실패")))) -> 실패 | AB138: =S138/H138-1 -> -0.7579972184
B139: 2024-04-30 | C139: 15:35:00 | D139: 9301 | E139: 1645 | F139: 11567 | G139: 2047 | H139: 2266 | I139: 367.2 | J139: -0.003394989777 | K139: 5.63681592 | M139: 2024-04-30 | N139: 15:45:00 | O139: 9137 | P139: 1341 | Q139: 10714 | R139: 1361 | S139: 1577 | T139: 367.45 | U139: 1.058580868 | V139: 78.85 | W139: 367.45 | Y139: =IF(H139>S139,"하락","상승") -> 하락 | Z139: 365.05 | AA139: =IF(AND(Y138="상승",Z139>W138),"성공",IF(AND(Y138="하락",Z139<W138),"성공",IF(AND(Y138="상승",Z139=W138),"동일가",IF(AND(Y138="하락",Z139=W138),"동일가","실패")))) -> 성공 | AB139: =S139/H139-1 -> -0.3040600177
B140: 2024-05-02 | C140: 15:35:00 | D140: 9626 | E140: 1591 | F140: 10184 | G140: 2156 | H140: 558 | I140: 365.6 | J140: -1.326720689 | K140: 0.9876106195 | M140: 2024-05-02 | N140: 15:45:00 | O140: 10298 | P140: 1111 | Q140: 9737 | R140: 1660 | S140: -561 | T140: 365.35 | U140: -3.403464262 | V140: -1.021857923 | W140: 365.35 | Y140: =IF(H140>S140,"하락","상승") -> 하락 | Z140: 365.1 | AA140: =IF(AND(Y139="상승",Z140>W139),"성공",IF(AND(Y139="하락",Z140<W139),"성공",IF(AND(Y139="상승",Z140=W139),"동일가",IF(AND(Y139="하락",Z140=W139),"동일가","실패")))) -> 성공 | AB140: =S140/H140-1 -> -2.005376344
B141: 2024-05-03 | C141: 15:35:00 | D141: 16188 | E141: 3118 | F141: 7025 | G141: 1043 | H141: -9163 | I141: 364.9 | J141: 1.543589107 | K141: 4.415903614 | M141: 2024-05-03 | N141: 15:45:00 | O141: 12148 | P141: 1867 | Q141: 8224 | R141: 849 | S141: -3924 | T141: 364.5 | U141: 3.179994991 | V141: 3.854616896 | W141: 364.5 | Y141: =IF(H141>S141,"하락","상승") -> 상승 | Z141: 369.3 | AA141: =IF(AND(Y140="상승",Z141>W140),"성공",IF(AND(Y140="하락",Z141<W140),"성공",IF(AND(Y140="상승",Z141=W140),"동일가",IF(AND(Y140="하락",Z141=W140),"동일가","실패")))) -> 실패 | AB141: =S141/H141-1 -> -0.5717559751
B142: 2024-05-07 | C142: 15:35:00 | D142: 9997 | E142: 1628 | F142: 20599 | G142: 3873 | H142: 10602 | I142: 373.75 | J142: -0.8220473308 | K142: 4.722494432 | M142: 2024-05-07 | N142: 15:45:00 | O142: 12949 | P142: 1326 | Q142: 16600 | R142: 2020 | S142: 3651 | T142: 373.7 | U142: -1.547638248 | V142: 5.260806916 | W142: 373.7 | Y142: =IF(H142>S142,"하락","상승") -> 하락 | Z142: 370.75 | AA142: =IF(AND(Y141="상승",Z142>W141),"성공",IF(AND(Y141="하락",Z142<W141),"성공",IF(AND(Y141="상승",Z142=W141),"동일가",IF(AND(Y141="하락",Z142=W141),"동일가","실패")))) -> 성공 | AB142: =S142/H142-1 -> -0.655631013
B143: 2024-05-08 | C143: 15:35:00 | D143: 9204 | E143: 1551 | F143: 17536 | G143: 3401 | H143: 8332 | I143: 375.35 | J143: -0.778105427 | K143: 4.503783784 | M143: 2024-05-08 | N143: 15:45:00 | O143: 10841 | P143: 1180 | Q143: 14642 | R143: 2002 | S143: 3801 | T143: 375.3 | U143: -1.873601822 | V143: 4.624087591 | W143: 375.3 | Y143: =IF(H143>S143,"하락","상승") -> 하락 | Z143: 374.35 | AA143: =IF(AND(Y142="상승",Z143>W142),"성공",IF(AND(Y142="하락",Z143<W142),"성공",IF(AND(Y142="상승",Z143=W142),"동일가",IF(AND(Y142="하락",Z143=W142),"동일가","실패")))) -> 실패 | AB143: =S143/H143-1 -> -0.5438070091
B144: 2024-05-09 | C144: 15:35:00 | D144: 15061 | E144: 2840 | F144: 6666 | G144: 1303 | H144: -8395 | I144: 370.7 | J144: -0.1872825981 | K144: 5.461938842 | M144: 2024-05-09 | N144: 15:45:00 | O144: 15736 | P144: 2129 | Q144: 12046 | R144: 1188 | S144: -3690 | T144: 370.95 | U144: 2.748467136 | V144: 3.921360255 | W144: 370.95 | Y144: =IF(H144>S144,"하락","상승") -> 상승 | Z144: 376.4 | AA144: =IF(AND(Y143="상승",Z144>W143),"성공",IF(AND(Y143="하락",Z144<W143),"성공",IF(AND(Y143="상승",Z144=W143),"동일가",IF(AND(Y143="하락",Z144=W143),"동일가","실패")))) -> 실패 | AB144: =S144/H144-1 -> -0.5604526504
B145: 2024-05-10 | C145: 15:35:00 | D145: 12786 | E145: 2328 | F145: 12035 | G145: 1750 | H145: -751 | I145: 372.55 | J145: 1.384874816 | K145: 1.299307958 | M145: 2024-05-10 | N145: 15:45:00 | O145: 12877 | P145: 1682 | Q145: 10124 | R145: 1066 | S145: -2753 | T145: 372.4 | U145: 1.841418797 | V145: 4.469155844 | W145: 372.4 | Y145: =IF(H145>S145,"하락","상승") -> 하락 | Z145: 373.95 | AA145: =IF(AND(Y144="상승",Z145>W144),"성공",IF(AND(Y144="하락",Z145<W144),"성공",IF(AND(Y144="상승",Z145=W144),"동일가",IF(AND(Y144="하락",Z145=W144),"동일가","실패")))) -> 성공 | AB145: =S145/H145-1 -> 2.665778961
B146: 2024-05-13 | C146: 15:35:00 | D146: 10630 | E146: 2071 | F146: 9033 | G146: 1602 | H146: -1597 | I146: 371.65 | J146: 0.5057906854 | K146: 3.405117271 | M146: 2024-05-13 | N146: 15:45:00 | O146: 10760 | P146: 1788 | Q146: 9778 | R146: 1367 | S146: -982 | T146: 371.65 | U146: 1.134992447 | V146: 2.332541568 | W146: 371.65 | Y146: =IF(H146>S146,"하락","상승") -> 상승 | Z146: 373.1 | AA146: =IF(AND(Y145="상승",Z146>W145),"성공",IF(AND(Y145="하락",Z146<W145),"성공",IF(AND(Y145="상승",Z146=W145),"동일가",IF(AND(Y145="하락",Z146=W145),"동일가","실패")))) -> 실패 | AB146: =S146/H146-1 -> -0.385097057
B147: 2024-05-14 | C147: 15:35:00 | D147: 11367 | E147: 1924 | F147: 11211 | G147: 1808 | H147: -156 | I147: 371.9 | J147: 0.2927701783 | K147: 1.344827586 | M147: 2024-05-14 | N147: 15:45:00 | O147: 10221 | P147: 1579 | Q147: 9726 | R147: 1448 | S147: -495 | T147: 371.85 | U147: 0.2437665982 | V147: 3.778625954 | W147: 371.85 | Y147: =IF(H147>S147,"하락","상승") -> 하락 | Z147: 372.4 | AA147: =IF(AND(Y146="상승",Z147>W146),"성공",IF(AND(Y146="하락",Z147<W146),"성공",IF(AND(Y146="상승",Z147=W146),"동일가",IF(AND(Y146="하락",Z147=W146),"동일가","실패")))) -> 성공 | AB147: =S147/H147-1 -> 2.173076923
B148: 2024-05-16 | C148: 15:35:00 | D148: 15041 | E148: 2976 | F148: 11928 | G148: 1812 | H148: -3113 | I148: 375.95 | J148: 1.528681995 | K148: 2.674398625 | M148: 2024-05-16 | N148: 15:45:00 | O148: 12227 | P148: 1926 | Q148: 8544 | R148: 1131 | S148: -3683 | T148: 376 | U148: 1.205986211 | V148: 4.632704403 | W148: 376 | Y148: =IF(H148>S148,"하락","상승") -> 하락 | Z148: 379.05 | AA148: =IF(AND(Y147="상승",Z148>W147),"성공",IF(AND(Y147="하락",Z148<W147),"성공",IF(AND(Y147="상승",Z148=W147),"동일가",IF(AND(Y147="하락",Z148=W147),"동일가","실패")))) -> 실패 | AB148: =S148/H148-1 -> 0.183103116
B149: 2024-05-17 | C149: 15:35:00 | D149: 21250 | E149: 3695 | F149: 9626 | G149: 1189 | H149: -11624 | I149: 371.45 | J149: 2.344864005 | K149: 4.638467678 | M149: 2024-05-17 | N149: 15:45:00 | O149: 14789 | P149: 1993 | Q149: 10883 | R149: 1003 | S149: -3906 | T149: 371.35 | U149: 3.429977003 | V149: 3.945454545 | W149: 371.35 | Y149: =IF(H149>S149,"하락","상승") -> 상승 | Z149: 374.35 | AA149: =IF(AND(Y148="상승",Z149>W148),"성공",IF(AND(Y148="하락",Z149<W148),"성공",IF(AND(Y148="상승",Z149=W148),"동일가",IF(AND(Y148="하락",Z149=W148),"동일가","실패")))) -> 성공 | AB149: =S149/H149-1 -> -0.6639710943
B150: 2024-05-20 | C150: 15:35:00 | D150: 10703 | E150: 2043 | F150: 14127 | G150: 2426 | H150: 3424 | I150: 374.45 | J150: 0.5843012898 | K150: 8.939947781 | M150: 2024-05-20 | N150: 15:45:00 | O150: 10678 | P150: 1568 | Q150: 11816 | R150: 1183 | S150: 1138 | T150: 374.65 | U150: 3.178216701 | V150: -2.955844156 | W150: 374.65 | Y150: =IF(H150>S150,"하락","상승") -> 하락 | Z150: 374.1 | AA150: =IF(AND(Y149="상승",Z150>W149),"성공",IF(AND(Y149="하락",Z150<W149),"성공",IF(AND(Y149="상승",Z150=W149),"동일가",IF(AND(Y149="하락",Z150=W149),"동일가","실패")))) -> 성공 | AB150: =S150/H150-1 -> -0.6676401869
B151: 2024-05-21 | C151: 15:35:00 | D151: 11774 | E151: 1828 | F151: 10985 | G151: 1950 | H151: -789 | I151: 373.05 | J151: -0.8075857039 | K151: -6.467213115 | M151: 2024-05-21 | N151: 15:45:00 | O151: 10796 | P151: 1221 | Q151: 10846 | R151: 1377 | S151: 50 | T151: 373.25 | U151: -0.9653896321 | V151: 0.3205128205 | W151: 373.25 | Y151: =IF(H151>S151,"하락","상승") -> 상승 | Z151: 373.85 | AA151: =IF(AND(Y150="상승",Z151>W150),"성공",IF(AND(Y150="하락",Z151<W150),"성공",IF(AND(Y150="상승",Z151=W150),"동일가",IF(AND(Y150="하락",Z151=W150),"동일가","실패")))) -> 성공 | AB151: =S151/H151-1 -> -1.063371356
B152: 2024-05-22 | C152: 15:35:00 | D152: 10451 | E152: 1742 | F152: 14433 | G152: 2677 | H152: 3982 | I152: 372.9 | J152: -0.6079429438 | K152: 4.258823529 | M152: 2024-05-22 | N152: 15:45:00 | O152: 9119 | P152: 1292 | Q152: 10425 | R152: 1485 | S152: 1306 | T152: 372.85 | U152: -0.0378475154 | V152: 6.766839378 | W152: 372.85 | Y152: =IF(H152>S152,"하락","상승") -> 하락 | Z152: 373.45 | AA152: =IF(AND(Y151="상승",Z152>W151),"성공",IF(AND(Y151="하락",Z152<W151),"성공",IF(AND(Y151="상승",Z152=W151),"동일가",IF(AND(Y151="하락",Z152=W151),"동일가","실패")))) -> 성공 | AB152: =S152/H152-1 -> -0.6720241085
B153: 2024-05-23 | C153: 15:35:00 | D153: 9900 | E153: 1772 | F153: 14631 | G153: 2481 | H153: 4731 | I153: 372.55 | J153: 0.3103114142 | K153: 6.672778561 | M153: 2024-05-23 | N153: 15:45:00 | O153: 9451 | P153: 1358 | Q153: 11285 | R153: 1429 | S153: 1834 | T153: 372.75 | U153: 0.9376315971 | V153: 25.83098592 | W153: 372.75 | Y153: =IF(H153>S153,"하락","상승") -> 하락 | Z153: 372.6 | AA153: =IF(AND(Y152="상승",Z153>W152),"성공",IF(AND(Y152="하락",Z153<W152),"성공",IF(AND(Y152="상승",Z153=W152),"동일가",IF(AND(Y152="하락",Z153=W152),"동일가","실패")))) -> 성공 | AB153: =S153/H153-1 -> -0.6123441133
B154: ='1. 매수매도 총잔량'!$A$3 -> 2024-05-23 | C154: ='1. 매수매도 총잔량'!$A$424 -> 15:35:00 | D154: ='1. 매수매도 총잔량'!$B$424 -> 9900 | E154: ='1. 매수매도 총잔량'!$C$424 -> 1772 | F154: ='1. 매수매도 총잔량'!$D$424 -> 14631 | G154: ='1. 매수매도 총잔량'!$E$424 -> 2481 | H154: ='1. 매수매도 총잔량'!$F$424 -> 4731 | I154: ='1. 매수매도 총잔량'!$G$425 -> 372.55 | J154: ='1. 매수매도 총잔량'!$H$424 -> 0.3103114142 | K154: ='1. 매수매도 총잔량'!$I$424 -> 6.672778561 | M154: ='1. 매수매도 총잔량'!$A$3 -> 2024-05-23 | N154: ='1. 매수매도 총잔량'!$A$434 -> 15:45:00 | O154: ='1. 매수매도 총잔량'!$B$434 -> 9451 | P154: ='1. 매수매도 총잔량'!$C$434 -> 1358 | Q154: ='1. 매수매도 총잔량'!$D$434 -> 11285 | R154: ='1. 매수매도 총잔량'!$E$434 -> 1429 | S154: ='1. 매수매도 총잔량'!$F$434 -> 1834 | T154: ='1. 매수매도 총잔량'!$G$435 -> 372.75 | U154: ='1. 매수매도 총잔량'!$H$434 -> 0.9376315971 | V154: ='1. 매수매도 총잔량'!$I$434 -> 25.83098592 | W154: =T154 -> 372.75 | Y154: =IF(H154>S154,"하락","상승") -> 하락 | Z154: =[1]!'101V6000.029' ->  | AA154: =IF(AND(Y153="상승",Z154>W153),"성공",IF(AND(Y153="하락",Z154<W153),"성공",IF(AND(Y153="상승",Z154=W153),"동일가",IF(AND(Y153="하락",Z154=W153),"동일가","실패")))) ->  | AB154: =S154/H154-1 -> -0.6123441133
B155: ='1. 매수매도 총잔량'!$A$3 -> 2024-05-23 | C155: ='1. 매수매도 총잔량'!$A$424 -> 15:35:00 | D155: ='1. 매수매도 총잔량'!$B$424 -> 9900 | E155: ='1. 매수매도 총잔량'!$C$424 -> 1772 | F155: ='1. 매수매도 총잔량'!$D$424 -> 14631 | G155: ='1. 매수매도 총잔량'!$E$424 -> 2481 | H155: ='1. 매수매도 총잔량'!$F$424 -> 4731 | I155: ='1. 매수매도 총잔량'!$G$425 -> 372.55 | J155: ='1. 매수매도 총잔량'!$H$424 -> 0.3103114142 | K155: ='1. 매수매도 총잔량'!$I$424 -> 6.672778561 | M155: ='1. 매수매도 총잔량'!$A$3 -> 2024-05-23 | N155: ='1. 매수매도 총잔량'!$A$434 -> 15:45:00 | O155: ='1. 매수매도 총잔량'!$B$434 -> 9451 | P155: ='1. 매수매도 총잔량'!$C$434 -> 1358 | Q155: ='1. 매수매도 총잔량'!$D$434 -> 11285 | R155: ='1. 매수매도 총잔량'!$E$434 -> 1429 | S155: ='1. 매수매도 총잔량'!$F$434 -> 1834 | T155: ='1. 매수매도 총잔량'!$G$435 -> 372.75 | U155: ='1. 매수매도 총잔량'!$H$434 -> 0.9376315971 | V155: ='1. 매수매도 총잔량'!$I$434 -> 25.83098592 | W155: =T155 -> 372.75 | Y155: =IF(H155>S155,"하락","상승") -> 하락 | Z155: =[1]!'101V6000.029' ->  | AA155: =IF(AND(Y154="상승",Z155>W154),"성공",IF(AND(Y154="하락",Z155<W154),"성공",IF(AND(Y154="상승",Z155=W154),"동일가",IF(AND(Y154="하락",Z155=W154),"동일가","실패")))) ->  | AB155: =S155/H155-1 -> -0.6123441133
